Workbook

Sheet 대덕구인구현황
A1: 대전광역시 대덕구 주민등록 인구현황
AA2: [ 2024. 5. 31. 기준 ]
A3: 동 별 | B3: 인 구 및 세 대 수 | I3: 10대 이하 (0세 ~ 19세) | L3: 20대 | O3: 30대 | R3: 40대 | U3: 50대 | X3: 60대 | AA3: 70대 이상 | AD3: 65세 이상
B4: 계 | C4: 전월계 | D4: 증감 | E4: 증감비 (%) | F4: 남 | G4: 여 | H4: 세대수 | I4: 계 | J4: 전월계 | K4: 증감 | L4: 계 | M4: 전월계 | N4: 증감 | O4: 계 | P4: 전월계 | Q4: 증감 | R4: 계 | S4: 전월계 | T4: 증감 | U4: 계 | V4: 전월계 | W4: 증감 | X4: 계 | Y4: 전월계 | Z4: 증감 | AA4: 계 | AB4: 전월계 | AC4: 증감 | AD4: 계 | AE4: 전월계 | AF4: 증감
A5: 계 | B5: 170090 | C5: 170196 | D5: =SUM(D6:D17) -> -106 | E5: =(D5/B5)*100 -> -0.06231994826 | F5: 86443 | G5: 83647 | H5: 81261 | I5: 22968 | J5: 23040 | K5: =SUM(K6:K17) -> -72 | L5: 21078 | M5: 21224 | N5: =SUM(N6:N17) -> -146 | O5: 19595 | P5: 19573 | Q5: 22 | R5: 23155 | S5: 23244 | T5: -89 | U5: 33193 | V5: 33195 | W5: =SUM(W6:W17) -> -2 | X5: 29019 | Y5: 28928 | Z5: 91 | AA5: 21082 | AB5: 20992 | AC5: 90 | AD5: 33975 | AE5: 33844 | AF5: =SUM(AF6:AF17) -> 131
A6: 오 정 동 | B6: 13863 | C6: 13902 | D6: =B6-C6 -> -39 | E6: =(D6/B6)*100 -> -0.2813243887 | F6: 7241 | G6: 6622 | H6: 7629 | I6: 1379 | J6: 1397 | K6: =I6-J6 -> -18 | L6: 2149 | M6: 2149 | N6: =L6-M6 -> 0 | O6: 1401 | P6: 1403 | Q6: =O6-P6 -> -2 | R6: 1591 | S6: 1599 | T6: =R6-S6 -> -8 | U6: 2447 | V6: 2466 | W6: =U6-V6 -> -19 | X6: 2733 | Y6: 2729 | Z6: =X6-Y6 -> 4 | AA6: 2163 | AB6: 2159 | AC6: =AA6-AB6 -> 4 | AD6: 3448 | AE6: 3440 | AF6: =AD6-AE6 -> 8
A7: 대 화 동 | B7: 6354 | C7: 6385 | D7: =B7-C7 -> -31 | E7: =(D7/B7)*100 -> -0.4878816494 | F7: 3320 | G7: 3034 | H7: 3327 | I7: 588 | J7: 596 | K7: -8 | L7: 629 | M7: 635 | N7: -6 | O7: 683 | P7: 684 | Q7: =O7-P7 -> -1 | R7: 876 | S7: 886 | T7: =R7-S7 -> -10 | U7: 1234 | V7: 1235 | W7: =U7-V7 -> -1 | X7: 1263 | Y7: 1268 | Z7: -5 | AA7: 1081 | AB7: 1081 | AC7: 0 | AD7: 1683 | AE7: 1692 | AF7: =AD7-AE7 -> -9
A8: 회 덕 동 | B8: 12646 | C8: 12509 | D8: =B8-C8 -> 137 | E8: =(D8/B8)*100 -> 1.083346513 | F8: 6480 | G8: 6166 | H8: 6046 | I8: 1460 | J8: 1438 | K8: 22 | L8: 1217 | M8: 1220 | N8: -3 | O8: 1447 | P8: 1394 | Q8: 53 | R8: 1517 | S8: 1507 | T8: 10 | U8: 2390 | V8: 2369 | W8: 21 | X8: 2589 | Y8: 2569 | Z8: 20 | AA8: 2026 | AB8: 2012 | AC8: 14 | AD8: 3227 | AE8: 3200 | AF8: =AD8-AE8 -> 27
A9: 비 래 동 | B9: 15188 | C9: 15252 | D9: =B9-C9 -> -64 | E9: =(D9/B9)*100 -> -0.4213853042 | F9: 7529 | G9: 7659 | H9: 6932 | I9: 1950 | J9: 1963 | K9: -13 | L9: 1851 | M9: 1877 | N9: -26 | O9: 1387 | P9: 1390 | Q9: -3 | R9: 1981 | S9: 1995 | T9: -14 | U9: 3135 | V9: 3147 | W9: -12 | X9: 2831 | Y9: 2829 | Z9: 2 | AA9: 2053 | AB9: 2051 | AC9: 2 | AD9: 3369 | AE9: 3357 | AF9: =AD9-AE9 -> 12
A10: 송 촌 동 | B10: 25887 | C10: 25936 | D10: =B10-C10 -> -49 | E10: =(D10/B10)*100 -> -0.1892841967 | F10: 12835 | G10: 13052 | H10: 10425 | I10: 4625 | J10: 4636 | K10: -11 | L10: 3565 | M10: 3599 | N10: -34 | O10: 2453 | P10: 2450 | Q10: 3 | R10: 3921 | S10: 3948 | T10: -27 | U10: 5746 | V10: 5748 | W10: -2 | X10: 3528 | Y10: 3505 | Z10: 23 | AA10: 2049 | AB10: 2050 | AC10: -1 | AD10: 3406 | AE10: 3398 | AF10: 8
A11: 중 리 동 | B11: 18474 | C11: 18530 | D11: =B11-C11 -> -56 | E11: =(D11/B11)*100 -> -0.3031287214 | F11: 9637 | G11: 8837 | H11: 10361 | I11: 1927 | J11: 1946 | K11: -19 | L11: 2610 | M11: 2631 | N11: -21 | O11: 2051 | P11: 2073 | Q11: -22 | R11: 2469 | S11: 2490 | T11: -21 | U11: 3658 | V11: 3659 | W11: -1 | X11: 3393 | Y11: 3378 | Z11: 15 | AA11: 2366 | AB11: 2353 | AC11: 13 | AD11: 3919 | AE11: 3905 | AF11: 14
A12: 법 1 동 | B12: 12327 | C12: 12344 | D12: =B12-C12 -> -17 | E12: =(D12/B12)*100 -> -0.1379086558 | F12: 5758 | G12: 6569 | H12: 5822 | I12: 1669 | J12: 1668 | K12: 1 | L12: 1248 | M12: 1278 | N12: -30 | O12: 1510 | P12: 1501 | Q12: 9 | R12: 1530 | S12: 1534 | T12: -4 | U12: 2356 | V12: 2367 | W12: -11 | X12: 2194 | Y12: 2186 | Z12: 8 | AA12: 1820 | AB12: 1810 | AC12: 10 | AD12: 2818 | AE12: 2808 | AF12: 10
A13: 법 2 동 | B13: 14963 | C13: 15038 | D13: =B13-C13 -> -75 | E13: =(D13/B13)*100 -> -0.5012363831 | F13: 7272 | G13: 7691 | H13: 6742 | I13: 1935 | J13: 1960 | K13: =I13-J13 -> -25 | L13: 1706 | M13: 1716 | N13: -10 | O13: 1345 | P13: 1362 | Q13: -17 | R13: 1823 | S13: 1843 | T13: -20 | U13: 3012 | V13: 3019 | W13: -7 | X13: 3007 | Y13: 3012 | Z13: -5 | AA13: 2135 | AB13: 2126 | AC13: 9 | AD13: 3448 | AE13: 3442 | AF13: 6
A14: 신 탄 진 | B14: 15446 | C14: 15230 | D14: =B14-C14 -> 216 | E14: =(D14/B14)*100 -> 1.398420303 | F14: 7945 | G14: 7501 | H14: 7504 | I14: 1986 | J14: 1954 | K14: =I14-J14 -> 32 | L14: 1774 | M14: 1763 | N14: 11 | O14: 2230 | P14: 2183 | Q14: 47 | R14: 2038 | S14: 2016 | T14: 22 | U14: 2934 | V14: 2861 | W14: 73 | X14: 2525 | Y14: 2521 | Z14: 4 | AA14: 1959 | AB14: 1932 | AC14: 27 | AD14: 3113 | AE14: 3078 | AF14: 35
A15: 석 봉 동 | B15: 16088 | C15: 16140 | D15: =B15-C15 -> -52 | E15: =(D15/B15)*100 -> -0.3232222775 | F15: 8243 | G15: 7845 | H15: 6679 | I15: 3240 | J15: 3248 | K15: -8 | L15: 1681 | M15: 1688 | N15: -7 | O15: 2546 | P15: 2579 | Q15: -33 | R15: 2770 | S15: 2764 | T15: 6 | U15: 2637 | V15: 2649 | W15: -12 | X15: 2018 | Y15: 2015 | Z15: 3 | AA15: 1196 | AB15: 1197 | AC15: -1 | AD15: 2027 | AE15: 2024 | AF15: 3
A16: 덕 암 동 | B16: 12824 | C16: 12853 | D16: =B16-C16 -> -29 | E16: =(D16/B16)*100 -> -0.2261384903 | F16: 6905 | G16: 5919 | H16: 6645 | I16: 1418 | J16: 1431 | K16: =I16-J16 -> -13 | L16: 1811 | M16: 1814 | N16: -3 | O16: 1630 | P16: 1635 | Q16: -5 | R16: 1651 | S16: 1669 | T16: -18 | U16: 2521 | V16: 2542 | W16: -21 | X16: 2081 | Y16: 2061 | Z16: 20 | AA16: 1712 | AB16: 1701 | AC16: 11 | AD16: 2651 | AE16: 2633 | AF16: 18
A17: 목 상 동 | B17: 6030 | C17: 6077 | D17: =B17-C17 -> -47 | E17: =(D17/B17)*100 -> -0.7794361526 | F17: 3278 | G17: 2752 | H17: 3149 | I17: 791 | J17: 803 | K17: =I17-J17 -> -12 | L17: 837 | M17: 854 | N17: -17 | O17: 912 | P17: 919 | Q17: -7 | R17: 988 | S17: 993 | T17: -5 | U17: 1123 | V17: 1133 | W17: -10 | X17: 857 | Y17: 855 | Z17: 2 | AA17: 522 | AB17: 520 | AC17: 2 | AD17: 866 | AE17: 867 | AF17: -1

Sheet 기관별연령별인구통계(2024.5.)
B2: 연령별(만)인구현황(기관별)
B4: 행정기관 : 대전광역시 대덕구 | M4: 출력일자 : | N4: 2024.06.03
B5: 통계년월 : 2024년 05월 현재
B6: 연령 | D6: 대덕구 | G6: 오정동 | J6: 대화동 | M6: 회덕동 | P6: 비래동 | S6: 송촌동 | V6: 중리동 | Y6: 법1동 | AB6: 법2동 | AE6: 신탄진동 | AH6: 석봉동 | AK6: 덕암동 | AN6: 목상동
D7: 인구수 | E7: 구성비 | F7: 성비 | G7: 인구수 | H7: 구성비 | I7: 성비 | J7: 인구수 | K7: 구성비 | L7: 성비 | M7: 인구수 | N7: 구성비 | O7: 성비 | P7: 인구수 | Q7: 구성비 | R7: 성비 | S7: 인구수 | T7: 구성비 | U7: 성비 | V7: 인구수 | W7: 구성비 | X7: 성비 | Y7: 인구수 | Z7: 구성비 | AA7: 성비 | AB7: 인구수 | AC7: 구성비 | AD7: 성비 | AE7: 인구수 | AF7: 구성비 | AG7: 성비 | AH7: 인구수 | AI7: 구성비 | AJ7: 성비 | AK7: 인구수 | AL7: 구성비 | AM7: 성비 | AN7: 인구수 | AO7: 구성비 | AP7: 성비
B8: 합 계 | C8: 계 | D8: 170090 | E8: 100 | F8: 103.34 | G8: 13863 | H8: 100 | I8: 109.35 | J8: 6354 | K8: 100 | L8: 109.43 | M8: 12646 | N8: 100 | O8: 105.09 | P8: 15188 | Q8: 100 | R8: 98.3 | S8: 25887 | T8: 100 | U8: 98.34 | V8: 18474 | W8: 100 | X8: 109.05 | Y8: 12327 | Z8: 100 | AA8: 87.65 | AB8: 14963 | AC8: 100 | AD8: 94.55 | AE8: 15446 | AF8: 100 | AG8: 105.92 | AH8: 16088 | AI8: 100 | AJ8: 105.07 | AK8: 12824 | AL8: 100 | AM8: 116.66 | AN8: 6030 | AO8: 100 | AP8: 119.11
C9: 남 | D9: 86443 | E9: 100 | G9: 7241 | H9: 100 | J9: 3320 | K9: 100 | M9: 6480 | N9: 100 | P9: 7529 | Q9: 100 | S9: 12835 | T9: 100 | V9: 9637 | W9: 100 | Y9: 5758 | Z9: 100 | AB9: 7272 | AC9: 100 | AE9: 7945 | AF9: 100 | AH9: 8243 | AI9: 100 | AK9: 6905 | AL9: 100 | AN9: 3278 | AO9: 100
C10: 여 | D10: 83647 | E10: 100 | G10: 6622 | H10: 100 | J10: 3034 | K10: 100 | M10: 6166 | N10: 100 | P10: 7659 | Q10: 100 | S10: 13052 | T10: 100 | V10: 8837 | W10: 100 | Y10: 6569 | Z10: 100 | AB10: 7691 | AC10: 100 | AE10: 7501 | AF10: 100 | AH10: 7845 | AI10: 100 | AK10: 5919 | AL10: 100 | AN10: 2752 | AO10: 100
B11: 0세 | C11: 계 | D11: 687 | E11: 0.4 | F11: 114.02 | G11: 39 | H11: 0.28 | I11: 116.67 | J11: 16 | K11: 0.25 | L11: 220 | M11: 48 | N11: 0.38 | O11: 108.7 | P11: 48 | Q11: 0.32 | R11: 118.18 | S11: 88 | T11: 0.34 | U11: 100 | V11: 47 | W11: 0.25 | X11: 147.37 | Y11: 76 | Z11: 0.62 | AA11: 85.37 | AB11: 48 | AC11: 0.32 | AD11: 140 | AE11: 114 | AF11: 0.74 | AG11: 111.11 | AH11: 101 | AI11: 0.63 | AJ11: 98.04 | AK11: 42 | AL11: 0.33 | AM11: 110 | AN11: 20 | AO11: 0.33 | AP11: 400
C12: 남 | D12: 366 | E12: 0.42 | G12: 21 | H12: 0.29 | J12: 11 | K12: 0.33 | M12: 25 | N12: 0.39 | P12: 26 | Q12: 0.35 | S12: 44 | T12: 0.34 | V12: 28 | W12: 0.29 | Y12: 35 | Z12: 0.61 | AB12: 28 | AC12: 0.39 | AE12: 60 | AF12: 0.76 | AH12: 50 | AI12: 0.61 | AK12: 22 | AL12: 0.32 | AN12: 16 | AO12: 0.49
C13: 여 | D13: 321 | E13: 0.38 | G13: 18 | H13: 0.27 | J13: 5 | K13: 0.16 | M13: 23 | N13: 0.37 | P13: 22 | Q13: 0.29 | S13: 44 | T13: 0.34 | V13: 19 | W13: 0.22 | Y13: 41 | Z13: 0.62 | AB13: 20 | AC13: 0.26 | AE13: 54 | AF13: 0.72 | AH13: 51 | AI13: 0.65 | AK13: 20 | AL13: 0.34 | AN13: 4 | AO13: 0.15
B14: 1세 | C14: 계 | D14: 801 | E14: 0.47 | F14: 121.27 | G14: 33 | H14: 0.24 | I14: 153.85 | J14: 19 | K14: 0.3 | L14: 137.5 | M14: 63 | N14: 0.5 | O14: 186.36 | P14: 47 | Q14: 0.31 | R14: 147.37 | S14: 93 | T14: 0.36 | U14: 102.17 | V14: 48 | W14: 0.26 | X14: 152.63 | Y14: 77 | Z14: 0.62 | AA14: 156.67 | AB14: 60 | AC14: 0.4 | AD14: 114.29 | AE14: 118 | AF14: 0.76 | AG14: 96.67 | AH14: 153 | AI14: 0.95 | AJ14: 115.49 | AK14: 58 | AL14: 0.45 | AM14: 107.14 | AN14: 32 | AO14: 0.53 | AP14: 77.78
C15: 남 | D15: 439 | E15: 0.51 | G15: 20 | H15: 0.28 | J15: 11 | K15: 0.33 | M15: 41 | N15: 0.63 | P15: 28 | Q15: 0.37 | S15: 47 | T15: 0.37 | V15: 29 | W15: 0.3 | Y15: 47 | Z15: 0.82 | AB15: 32 | AC15: 0.44 | AE15: 58 | AF15: 0.73 | AH15: 82 | AI15: 0.99 | AK15: 30 | AL15: 0.43 | AN15: 14 | AO15: 0.43
C16: 여 | D16: 362 | E16: 0.43 | G16: 13 | H16: 0.2 | J16: 8 | K16: 0.26 | M16: 22 | N16: 0.36 | P16: 19 | Q16: 0.25 | S16: 46 | T16: 0.35 | V16: 19 | W16: 0.22 | Y16: 30 | Z16: 0.46 | AB16: 28 | AC16: 0.36 | AE16: 60 | AF16: 0.8 | AH16: 71 | AI16: 0.91 | AK16: 28 | AL16: 0.47 | AN16: 18 | AO16: 0.65
B17: 2세 | C17: 계 | D17: 746 | E17: 0.44 | F17: 95.29 | G17: 42 | H17: 0.3 | I17: 110 | J17: 16 | K17: 0.25 | L17: 60 | M17: 65 | N17: 0.51 | O17: 85.71 | P17: 46 | Q17: 0.3 | R17: 119.05 | S17: 121 | T17: 0.47 | U17: 86.15 | V17: 50 | W17: 0.27 | X17: 117.39 | Y17: 79 | Z17: 0.64 | AA17: 107.89 | AB17: 45 | AC17: 0.3 | AD17: 150 | AE17: 85 | AF17: 0.55 | AG17: 77.08 | AH17: 135 | AI17: 0.84 | AJ17: 87.5 | AK17: 41 | AL17: 0.32 | AM17: 115.79 | AN17: 21 | AO17: 0.35 | AP17: 61.54
C18: 남 | D18: 364 | E18: 0.42 | G18: 22 | H18: 0.3 | J18: 6 | K18: 0.18 | M18: 30 | N18: 0.46 | P18: 25 | Q18: 0.33 | S18: 56 | T18: 0.44 | V18: 27 | W18: 0.28 | Y18: 41 | Z18: 0.71 | AB18: 27 | AC18: 0.37 | AE18: 37 | AF18: 0.47 | AH18: 63 | AI18: 0.76 | AK18: 22 | AL18: 0.32 | AN18: 8 | AO18: 0.24
C19: 여 | D19: 382 | E19: 0.46 | G19: 20 | H19: 0.3 | J19: 10 | K19: 0.33 | M19: 35 | N19: 0.57 | P19: 21 | Q19: 0.27 | S19: 65 | T19: 0.5 | V19: 23 | W19: 0.26 | Y19: 38 | Z19: 0.58 | AB19: 18 | AC19: 0.23 | AE19: 48 | AF19: 0.64 | AH19: 72 | AI19: 0.92 | AK19: 19 | AL19: 0.32 | AN19: 13 | AO19: 0.47
B20: 3세 | C20: 계 | D20: 713 | E20: 0.42 | F20: 116.06 | G20: 39 | H20: 0.28 | I20: 105.26 | J20: 20 | K20: 0.31 | L20: 100 | M20: 46 | N20: 0.36 | O20: 155.56 | P20: 49 | Q20: 0.32 | R20: 96 | S20: 112 | T20: 0.43 | U20: 100 | V20: 51 | W20: 0.28 | X20: 131.82 | Y20: 76 | Z20: 0.62 | AA20: 100 | AB20: 38 | AC20: 0.25 | AD20: 153.33 | AE20: 84 | AF20: 0.54 | AG20: 95.35 | AH20: 126 | AI20: 0.78 | AJ20: 147.06 | AK20: 51 | AL20: 0.4 | AM20: 104 | AN20: 21 | AO20: 0.35 | AP20: 162.5
C21: 남 | D21: 383 | E21: 0.44 | G21: 20 | H21: 0.28 | J21: 10 | K21: 0.3 | M21: 28 | N21: 0.43 | P21: 24 | Q21: 0.32 | S21: 56 | T21: 0.44 | V21: 29 | W21: 0.3 | Y21: 38 | Z21: 0.66 | AB21: 23 | AC21: 0.32 | AE21: 41 | AF21: 0.52 | AH21: 75 | AI21: 0.91 | AK21: 26 | AL21: 0.38 | AN21: 13 | AO21: 0.4
C22: 여 | D22: 330 | E22: 0.39 | G22: 19 | H22: 0.29 | J22: 10 | K22: 0.33 | M22: 18 | N22: 0.29 | P22: 25 | Q22: 0.33 | S22: 56 | T22: 0.43 | V22: 22 | W22: 0.25 | Y22: 38 | Z22: 0.58 | AB22: 15 | AC22: 0.2 | AE22: 43 | AF22: 0.57 | AH22: 51 | AI22: 0.65 | AK22: 25 | AL22: 0.42 | AN22: 8 | AO22: 0.29
B23: 4세 | C23: 계 | D23: 776 | E23: 0.46 | F23: 106.93 | G23: 37 | H23: 0.27 | I23: 146.67 | J23: 10 | K23: 0.16 | L23: 100 | M23: 57 | N23: 0.45 | O23: 119.23 | P23: 47 | Q23: 0.31 | R23: 123.81 | S23: 129 | T23: 0.5 | U23: 126.32 | V23: 54 | W23: 0.29 | X23: 116 | Y23: 67 | Z23: 0.54 | AA23: 76.32 | AB23: 63 | AC23: 0.42 | AD23: 186.36 | AE23: 83 | AF23: 0.54 | AG23: 76.6 | AH23: 144 | AI23: 0.9 | AJ23: 102.82 | AK23: 54 | AL23: 0.42 | AM23: 92.86 | AN23: 31 | AO23: 0.51 | AP23: 55
C24: 남 | D24: 401 | E24: 0.46 | G24: 22 | H24: 0.3 | J24: 5 | K24: 0.15 | M24: 31 | N24: 0.48 | P24: 26 | Q24: 0.35 | S24: 72 | T24: 0.56 | V24: 29 | W24: 0.3 | Y24: 29 | Z24: 0.5 | AB24: 41 | AC24: 0.56 | AE24: 36 | AF24: 0.45 | AH24: 73 | AI24: 0.89 | AK24: 26 | AL24: 0.38 | AN24: 11 | AO24: 0.34
C25: 여 | D25: 375 | E25: 0.45 | G25: 15 | H25: 0.23 | J25: 5 | K25: 0.16 | M25: 26 | N25: 0.42 | P25: 21 | Q25: 0.27 | S25: 57 | T25: 0.44 | V25: 25 | W25: 0.28 | Y25: 38 | Z25: 0.58 | AB25: 22 | AC25: 0.29 | AE25: 47 | AF25: 0.63 | AH25: 71 | AI25: 0.91 | AK25: 28 | AL25: 0.47 | AN25: 20 | AO25: 0.73
B26: 5세 | C26: 계 | D26: 841 | E26: 0.49 | F26: 91.14 | G26: 48 | H26: 0.35 | I26: 92 | J26: 13 | K26: 0.2 | L26: 85.71 | M26: 57 | N26: 0.45 | O26: 83.87 | P26: 62 | Q26: 0.41 | R26: 148 | S26: 130 | T26: 0.5 | U26: 66.67 | V26: 69 | W26: 0.37 | X26: 76.92 | Y26: 70 | Z26: 0.57 | AA26: 79.49 | AB26: 87 | AC26: 0.58 | AD26: 70.59 | AE26: 75 | AF26: 0.49 | AG26: 102.7 | AH26: 150 | AI26: 0.93 | AJ26: 117.39 | AK26: 51 | AL26: 0.4 | AM26: 112.5 | AN26: 29 | AO26: 0.48 | AP26: 93.33
C27: 남 | D27: 401 | E27: 0.46 | G27: 23 | H27: 0.32 | J27: 6 | K27: 0.18 | M27: 26 | N27: 0.4 | P27: 37 | Q27: 0.49 | S27: 52 | T27: 0.41 | V27: 30 | W27: 0.31 | Y27: 31 | Z27: 0.54 | AB27: 36 | AC27: 0.5 | AE27: 38 | AF27: 0.48 | AH27: 81 | AI27: 0.98 | AK27: 27 | AL27: 0.39 | AN27: 14 | AO27: 0.43
C28: 여 | D28: 440 | E28: 0.53 | G28: 25 | H28: 0.38 | J28: 7 | K28: 0.23 | M28: 31 | N28: 0.5 | P28: 25 | Q28: 0.33 | S28: 78 | T28: 0.6 | V28: 39 | W28: 0.44 | Y28: 39 | Z28: 0.59 | AB28: 51 | AC28: 0.66 | AE28: 37 | AF28: 0.49 | AH28: 69 | AI28: 0.88 | AK28: 24 | AL28: 0.41 | AN28: 15 | AO28: 0.55
B29: 6세 | C29: 계 | D29: 875 | E29: 0.51 | F29: 105.4 | G29: 42 | H29: 0.3 | I29: 100 | J29: 23 | K29: 0.36 | L29: 109.09 | M29: 60 | N29: 0.47 | O29: 100 | P29: 72 | Q29: 0.47 | R29: 125 | S29: 166 | T29: 0.64 | U29: 97.62 | V29: 59 | W29: 0.32 | X29: 136 | Y29: 59 | Z29: 0.48 | AA29: 110.71 | AB29: 80 | AC29: 0.53 | AD29: 95.12 | AE29: 86 | AF29: 0.56 | AG29: 104.76 | AH29: 169 | AI29: 1.05 | AJ29: 96.51 | AK29: 37 | AL29: 0.29 | AM29: 105.56 | AN29: 22 | AO29: 0.36 | AP29: 175
C30: 남 | D30: 449 | E30: 0.52 | G30: 21 | H30: 0.29 | J30: 12 | K30: 0.36 | M30: 30 | N30: 0.46 | P30: 40 | Q30: 0.53 | S30: 82 | T30: 0.64 | V30: 34 | W30: 0.35 | Y30: 31 | Z30: 0.54 | AB30: 39 | AC30: 0.54 | AE30: 44 | AF30: 0.55 | AH30: 83 | AI30: 1.01 | AK30: 19 | AL30: 0.28 | AN30: 14 | AO30: 0.43
C31: 여 | D31: 426 | E31: 0.51 | G31: 21 | H31: 0.32 | J31: 11 | K31: 0.36 | M31: 30 | N31: 0.49 | P31: 32 | Q31: 0.42 | S31: 84 | T31: 0.64 | V31: 25 | W31: 0.28 | Y31: 28 | Z31: 0.43 | AB31: 41 | AC31: 0.53 | AE31: 42 | AF31: 0.56 | AH31: 86 | AI31: 1.1 | AK31: 18 | AL31: 0.3 | AN31: 8 | AO31: 0.29
B32: 7세 | C32: 계 | D32: 1015 | E32: 0.6 | F32: 93.7 | G32: 46 | H32: 0.33 | I32: 84 | J32: 16 | K32: 0.25 | L32: 77.78 | M32: 61 | N32: 0.48 | O32: 96.77 | P32: 86 | Q32: 0.57 | R32: 91.11 | S32: 184 | T32: 0.71 | U32: 93.68 | V32: 87 | W32: 0.47 | X32: 85.11 | Y32: 75 | Z32: 0.61 | AA32: 59.57 | AB32: 84 | AC32: 0.56 | AD32: 100 | AE32: 86 | AF32: 0.56 | AG32: 126.32 | AH32: 187 | AI32: 1.16 | AJ32: 94.79 | AK32: 68 | AL32: 0.53 | AM32: 134.48 | AN32: 35 | AO32: 0.58 | AP32: 75
C33: 남 | D33: 491 | E33: 0.57 | G33: 21 | H33: 0.29 | J33: 7 | K33: 0.21 | M33: 30 | N33: 0.46 | P33: 41 | Q33: 0.54 | S33: 89 | T33: 0.69 | V33: 40 | W33: 0.42 | Y33: 28 | Z33: 0.49 | AB33: 42 | AC33: 0.58 | AE33: 48 | AF33: 0.6 | AH33: 91 | AI33: 1.1 | AK33: 39 | AL33: 0.56 | AN33: 15 | AO33: 0.46
C34: 여 | D34: 524 | E34: 0.63 | G34: 25 | H34: 0.38 | J34: 9 | K34: 0.3 | M34: 31 | N34: 0.5 | P34: 45 | Q34: 0.59 | S34: 95 | T34: 0.73 | V34: 47 | W34: 0.53 | Y34: 47 | Z34: 0.72 | AB34: 42 | AC34: 0.55 | AE34: 38 | AF34: 0.51 | AH34: 96 | AI34: 1.22 | AK34: 29 | AL34: 0.49 | AN34: 20 | AO34: 0.73
B35: 8세 | C35: 계 | D35: 1091 | E35: 0.64 | F35: 99.45 | G35: 56 | H35: 0.4 | I35: 75 | J35: 30 | K35: 0.47 | L35: 172.73 | M35: 59 | N35: 0.47 | O35: 126.92 | P35: 89 | Q35: 0.59 | R35: 97.78 | S35: 217 | T35: 0.84 | U35: 93.75 | V35: 80 | W35: 0.43 | X35: 66.67 | Y35: 81 | Z35: 0.66 | AA35: 113.16 | AB35: 103 | AC35: 0.69 | AD35: 119.15 | AE35: 91 | AF35: 0.59 | AG35: 78.43 | AH35: 197 | AI35: 1.22 | AJ35: 98.99 | AK35: 53 | AL35: 0.41 | AM35: 112 | AN35: 35 | AO35: 0.58 | AP35: 169.23
C36: 남 | D36: 544 | E36: 0.63 | G36: 24 | H36: 0.33 | J36: 19 | K36: 0.57 | M36: 33 | N36: 0.51 | P36: 44 | Q36: 0.58 | S36: 105 | T36: 0.82 | V36: 32 | W36: 0.33 | Y36: 43 | Z36: 0.75 | AB36: 56 | AC36: 0.77 | AE36: 40 | AF36: 0.5 | AH36: 98 | AI36: 1.19 | AK36: 28 | AL36: 0.41 | AN36: 22 | AO36: 0.67
C37: 여 | D37: 547 | E37: 0.65 | G37: 32 | H37: 0.48 | J37: 11 | K37: 0.36 | M37: 26 | N37: 0.42 | P37: 45 | Q37: 0.59 | S37: 112 | T37: 0.86 | V37: 48 | W37: 0.54 | Y37: 38 | Z37: 0.58 | AB37: 47 | AC37: 0.61 | AE37: 51 | AF37: 0.68 | AH37: 99 | AI37: 1.26 | AK37: 25 | AL37: 0.42 | AN37: 13 | AO37: 0.47
B38: 9세 | C38: 계 | D38: 1161 | E38: 0.68 | F38: 117.82 | G38: 62 | H38: 0.45 | I38: 129.63 | J38: 26 | K38: 0.41 | L38: 136.36 | M38: 67 | N38: 0.53 | O38: 97.06 | P38: 99 | Q38: 0.65 | R38: 98 | S38: 220 | T38: 0.85 | U38: 129.17 | V38: 93 | W38: 0.5 | X38: 116.28 | Y38: 74 | Z38: 0.6 | AA38: 94.74 | AB38: 98 | AC38: 0.65 | AD38: 108.51 | AE38: 97 | AF38: 0.63 | AG38: 83.02 | AH38: 222 | AI38: 1.38 | AJ38: 138.71 | AK38: 56 | AL38: 0.44 | AM38: 154.55 | AN38: 47 | AO38: 0.78 | AP38: 147.37
C39: 남 | D39: 628 | E39: 0.73 | G39: 35 | H39: 0.48 | J39: 15 | K39: 0.45 | M39: 33 | N39: 0.51 | P39: 49 | Q39: 0.65 | S39: 124 | T39: 0.97 | V39: 50 | W39: 0.52 | Y39: 36 | Z39: 0.63 | AB39: 51 | AC39: 0.7 | AE39: 44 | AF39: 0.55 | AH39: 129 | AI39: 1.56 | AK39: 34 | AL39: 0.49 | AN39: 28 | AO39: 0.85
C40: 여 | D40: 533 | E40: 0.64 | G40: 27 | H40: 0.41 | J40: 11 | K40: 0.36 | M40: 34 | N40: 0.55 | P40: 50 | Q40: 0.65 | S40: 96 | T40: 0.74 | V40: 43 | W40: 0.49 | Y40: 38 | Z40: 0.58 | AB40: 47 | AC40: 0.61 | AE40: 53 | AF40: 0.71 | AH40: 93 | AI40: 1.19 | AK40: 22 | AL40: 0.37 | AN40: 19 | AO40: 0.69
B41: 10세 | C41: 계 | D41: 1239 | E41: 0.73 | F41: 112.52 | G41: 53 | H41: 0.38 | I41: 112 | J41: 27 | K41: 0.42 | L41: 145.45 | M41: 69 | N41: 0.55 | O41: 102.94 | P41: 95 | Q41: 0.63 | R41: 143.59 | S41: 262 | T41: 1.01 | U41: 106.3 | V41: 96 | W41: 0.52 | X41: 118.18 | Y41: 84 | Z41: 0.68 | AA41: 86.67 | AB41: 107 | AC41: 0.72 | AD41: 122.92 | AE41: 94 | AF41: 0.61 | AG41: 95.83 | AH41: 238 | AI41: 1.48 | AJ41: 118.35 | AK41: 78 | AL41: 0.61 | AM41: 105.26 | AN41: 36 | AO41: 0.6 | AP41: 140
C42: 남 | D42: 656 | E42: 0.76 | G42: 28 | H42: 0.39 | J42: 16 | K42: 0.48 | M42: 35 | N42: 0.54 | P42: 56 | Q42: 0.74 | S42: 135 | T42: 1.05 | V42: 52 | W42: 0.54 | Y42: 39 | Z42: 0.68 | AB42: 59 | AC42: 0.81 | AE42: 46 | AF42: 0.58 | AH42: 129 | AI42: 1.56 | AK42: 40 | AL42: 0.58 | AN42: 21 | AO42: 0.64
C43: 여 | D43: 583 | E43: 0.7 | G43: 25 | H43: 0.38 | J43: 11 | K43: 0.36 | M43: 34 | N43: 0.55 | P43: 39 | Q43: 0.51 | S43: 127 | T43: 0.97 | V43: 44 | W43: 0.5 | Y43: 45 | Z43: 0.69 | AB43: 48 | AC43: 0.62 | AE43: 48 | AF43: 0.64 | AH43: 109 | AI43: 1.39 | AK43: 38 | AL43: 0.64 | AN43: 15 | AO43: 0.55
B44: 11세 | C44: 계 | D44: 1289 | E44: 0.76 | F44: 100.16 | G44: 79 | H44: 0.57 | I44: 75.56 | J44: 37 | K44: 0.58 | L44: 94.74 | M44: 68 | N44: 0.54 | O44: 100 | P44: 100 | Q44: 0.66 | R44: 78.57 | S44: 282 | T44: 1.09 | U44: 94.48 | V44: 112 | W44: 0.61 | X44: 143.48 | Y44: 82 | Z44: 0.67 | AA44: 100 | AB44: 102 | AC44: 0.68 | AD44: 131.82 | AE44: 103 | AF44: 0.67 | AG44: 101.96 | AH44: 205 | AI44: 1.27 | AJ44: 100.98 | AK44: 67 | AL44: 0.52 | AM44: 103.03 | AN44: 52 | AO44: 0.86 | AP44: 85.71
C45: 남 | D45: 645 | E45: 0.75 | G45: 34 | H45: 0.47 | J45: 18 | K45: 0.54 | M45: 34 | N45: 0.52 | P45: 44 | Q45: 0.58 | S45: 137 | T45: 1.07 | V45: 66 | W45: 0.68 | Y45: 41 | Z45: 0.71 | AB45: 58 | AC45: 0.8 | AE45: 52 | AF45: 0.65 | AH45: 103 | AI45: 1.25 | AK45: 34 | AL45: 0.49 | AN45: 24 | AO45: 0.73
C46: 여 | D46: 644 | E46: 0.77 | G46: 45 | H46: 0.68 | J46: 19 | K46: 0.63 | M46: 34 | N46: 0.55 | P46: 56 | Q46: 0.73 | S46: 145 | T46: 1.11 | V46: 46 | W46: 0.52 | Y46: 41 | Z46: 0.62 | AB46: 44 | AC46: 0.57 | AE46: 51 | AF46: 0.68 | AH46: 102 | AI46: 1.3 | AK46: 33 | AL46: 0.56 | AN46: 28 | AO46: 1.02
B47: 12세 | C47: 계 | D47: 1367 | E47: 0.8 | F47: 106.5 | G47: 85 | H47: 0.61 | I47: 123.68 | J47: 32 | K47: 0.5 | L47: 113.33 | M47: 93 | N47: 0.74 | O47: 111.36 | P47: 115 | Q47: 0.76 | R47: 105.36 | S47: 298 | T47: 1.15 | U47: 106.94 | V47: 121 | W47: 0.65 | X47: 89.06 | Y47: 84 | Z47: 0.68 | AA47: 100 | AB47: 114 | AC47: 0.76 | AD47: 103.57 | AE47: 109 | AF47: 0.71 | AG47: 94.64 | AH47: 188 | AI47: 1.17 | AJ47: 118.6 | AK47: 86 | AL47: 0.67 | AM47: 132.43 | AN47: 42 | AO47: 0.7 | AP47: 75
C48: 남 | D48: 705 | E48: 0.82 | G48: 47 | H48: 0.65 | J48: 17 | K48: 0.51 | M48: 49 | N48: 0.76 | P48: 59 | Q48: 0.78 | S48: 154 | T48: 1.2 | V48: 57 | W48: 0.59 | Y48: 42 | Z48: 0.73 | AB48: 58 | AC48: 0.8 | AE48: 53 | AF48: 0.67 | AH48: 102 | AI48: 1.24 | AK48: 49 | AL48: 0.71 | AN48: 18 | AO48: 0.55
C49: 여 | D49: 662 | E49: 0.79 | G49: 38 | H49: 0.57 | J49: 15 | K49: 0.49 | M49: 44 | N49: 0.71 | P49: 56 | Q49: 0.73 | S49: 144 | T49: 1.1 | V49: 64 | W49: 0.72 | Y49: 42 | Z49: 0.64 | AB49: 56 | AC49: 0.73 | AE49: 56 | AF49: 0.75 | AH49: 86 | AI49: 1.1 | AK49: 37 | AL49: 0.63 | AN49: 24 | AO49: 0.87
B50: 13세 | C50: 계 | D50: 1406 | E50: 0.83 | F50: 109.23 | G50: 86 | H50: 0.62 | I50: 186.67 | J50: 41 | K50: 0.65 | L50: 173.33 | M50: 81 | N50: 0.64 | O50: 153.13 | P50: 117 | Q50: 0.77 | R50: 101.72 | S50: 302 | T50: 1.17 | U50: 102.68 | V50: 123 | W50: 0.67 | X50: 105 | Y50: 81 | Z50: 0.66 | AA50: 102.5 | AB50: 124 | AC50: 0.83 | AD50: 121.43 | AE50: 106 | AF50: 0.69 | AG50: 96.3 | AH50: 201 | AI50: 1.25 | AJ50: 107.22 | AK50: 88 | AL50: 0.69 | AM50: 83.33 | AN50: 56 | AO50: 0.93 | AP50: 69.7
C51: 남 | D51: 734 | E51: 0.85 | G51: 56 | H51: 0.77 | J51: 26 | K51: 0.78 | M51: 49 | N51: 0.76 | P51: 59 | Q51: 0.78 | S51: 153 | T51: 1.19 | V51: 63 | W51: 0.65 | Y51: 41 | Z51: 0.71 | AB51: 68 | AC51: 0.94 | AE51: 52 | AF51: 0.65 | AH51: 104 | AI51: 1.26 | AK51: 40 | AL51: 0.58 | AN51: 23 | AO51: 0.7
C52: 여 | D52: 672 | E52: 0.8 | G52: 30 | H52: 0.45 | J52: 15 | K52: 0.49 | M52: 32 | N52: 0.52 | P52: 58 | Q52: 0.76 | S52: 149 | T52: 1.14 | V52: 60 | W52: 0.68 | Y52: 40 | Z52: 0.61 | AB52: 56 | AC52: 0.73 | AE52: 54 | AF52: 0.72 | AH52: 97 | AI52: 1.24 | AK52: 48 | AL52: 0.81 | AN52: 33 | AO52: 1.2
B53: 14세 | C53: 계 | D53: 1360 | E53: 0.8 | F53: 112.83 | G53: 96 | H53: 0.69 | I53: 100 | J53: 40 | K53: 0.63 | L53: 110.53 | M53: 84 | N53: 0.66 | O53: 104.88 | P53: 117 | Q53: 0.77 | R53: 101.72 | S53: 314 | T53: 1.21 | U53: 116.55 | V53: 127 | W53: 0.69 | X53: 115.25 | Y53: 92 | Z53: 0.75 | AA53: 135.9 | AB53: 123 | AC53: 0.82 | AD53: 146 | AE53: 96 | AF53: 0.62 | AG53: 88.24 | AH53: 143 | AI53: 0.89 | AJ53: 116.67 | AK53: 82 | AL53: 0.64 | AM53: 110.26 | AN53: 46 | AO53: 0.76 | AP53: 91.67
C54: 남 | D54: 721 | E54: 0.83 | G54: 48 | H54: 0.66 | J54: 21 | K54: 0.63 | M54: 43 | N54: 0.66 | P54: 59 | Q54: 0.78 | S54: 169 | T54: 1.32 | V54: 68 | W54: 0.71 | Y54: 53 | Z54: 0.92 | AB54: 73 | AC54: 1 | AE54: 45 | AF54: 0.57 | AH54: 77 | AI54: 0.93 | AK54: 43 | AL54: 0.62 | AN54: 22 | AO54: 0.67
C55: 여 | D55: 639 | E55: 0.76 | G55: 48 | H55: 0.72 | J55: 19 | K55: 0.63 | M55: 41 | N55: 0.66 | P55: 58 | Q55: 0.76 | S55: 145 | T55: 1.11 | V55: 59 | W55: 0.67 | Y55: 39 | Z55: 0.59 | AB55: 50 | AC55: 0.65 | AE55: 51 | AF55: 0.68 | AH55: 66 | AI55: 0.84 | AK55: 39 | AL55: 0.66 | AN55: 24 | AO55: 0.87
B56: 15세 | C56: 계 | D56: 1444 | E56: 0.85 | F56: 103.09 | G56: 82 | H56: 0.59 | I56: 164.52 | J56: 47 | K56: 0.74 | L56: 123.81 | M56: 99 | N56: 0.78 | O56: 106.25 | P56: 148 | Q56: 0.97 | R56: 131.25 | S56: 324 | T56: 1.25 | U56: 82.02 | V56: 135 | W56: 0.73 | X56: 128.81 | Y56: 101 | Z56: 0.82 | AA56: 62.9 | AB56: 94 | AC56: 0.63 | AD56: 118.6 | AE56: 95 | AF56: 0.62 | AG56: 86.27 | AH56: 158 | AI56: 0.98 | AJ56: 116.44 | AK56: 91 | AL56: 0.71 | AM56: 106.82 | AN56: 70 | AO56: 1.16 | AP56: 89.19
C57: 남 | D57: 733 | E57: 0.85 | G57: 51 | H57: 0.7 | J57: 26 | K57: 0.78 | M57: 51 | N57: 0.79 | P57: 84 | Q57: 1.12 | S57: 146 | T57: 1.14 | V57: 76 | W57: 0.79 | Y57: 39 | Z57: 0.68 | AB57: 51 | AC57: 0.7 | AE57: 44 | AF57: 0.55 | AH57: 85 | AI57: 1.03 | AK57: 47 | AL57: 0.68 | AN57: 33 | AO57: 1.01
C58: 여 | D58: 711 | E58: 0.85 | G58: 31 | H58: 0.47 | J58: 21 | K58: 0.69 | M58: 48 | N58: 0.78 | P58: 64 | Q58: 0.84 | S58: 178 | T58: 1.36 | V58: 59 | W58: 0.67 | Y58: 62 | Z58: 0.94 | AB58: 43 | AC58: 0.56 | AE58: 51 | AF58: 0.68 | AH58: 73 | AI58: 0.93 | AK58: 44 | AL58: 0.74 | AN58: 37 | AO58: 1.34
B59: 16세 | C59: 계 | D59: 1518 | E59: 0.89 | F59: 109.67 | G59: 105 | H59: 0.76 | I59: 114.29 | J59: 54 | K59: 0.85 | L59: 134.78 | M59: 76 | N59: 0.6 | O59: 145.16 | P59: 167 | Q59: 1.1 | R59: 108.75 | S59: 328 | T59: 1.27 | U59: 95.24 | V59: 129 | W59: 0.7 | X59: 118.64 | Y59: 107 | Z59: 0.87 | AA59: 127.66 | AB59: 144 | AC59: 0.96 | AD59: 100 | AE59: 109 | AF59: 0.71 | AG59: 113.73 | AH59: 129 | AI59: 0.8 | AJ59: 111.48 | AK59: 108 | AL59: 0.84 | AM59: 111.76 | AN59: 62 | AO59: 1.03 | AP59: 93.75
C60: 남 | D60: 794 | E60: 0.92 | G60: 56 | H60: 0.77 | J60: 31 | K60: 0.93 | M60: 45 | N60: 0.69 | P60: 87 | Q60: 1.16 | S60: 160 | T60: 1.25 | V60: 70 | W60: 0.73 | Y60: 60 | Z60: 1.04 | AB60: 72 | AC60: 0.99 | AE60: 58 | AF60: 0.73 | AH60: 68 | AI60: 0.82 | AK60: 57 | AL60: 0.83 | AN60: 30 | AO60: 0.92
C61: 여 | D61: 724 | E61: 0.87 | G61: 49 | H61: 0.74 | J61: 23 | K61: 0.76 | M61: 31 | N61: 0.5 | P61: 80 | Q61: 1.04 | S61: 168 | T61: 1.29 | V61: 59 | W61: 0.67 | Y61: 47 | Z61: 0.72 | AB61: 72 | AC61: 0.94 | AE61: 51 | AF61: 0.68 | AH61: 61 | AI61: 0.78 | AK61: 51 | AL61: 0.86 | AN61: 32 | AO61: 1.16
B62: 17세 | C62: 계 | D62: 1533 | E62: 0.9 | F62: 114.71 | G62: 77 | H62: 0.56 | I62: 126.47 | J62: 40 | K62: 0.63 | L62: 110.53 | M62: 96 | N62: 0.76 | O62: 118.18 | P62: 151 | Q62: 0.99 | R62: 125.37 | S62: 400 | T62: 1.55 | U62: 107.25 | V62: 144 | W62: 0.78 | X62: 97.26 | Y62: 92 | Z62: 0.75 | AA62: 109.09 | AB62: 132 | AC62: 0.88 | AD62: 106.25 | AE62: 125 | AF62: 0.81 | AG62: 212.5 | AH62: 140 | AI62: 0.87 | AJ62: 94.44 | AK62: 90 | AL62: 0.7 | AM62: 95.65 | AN62: 46 | AO62: 0.76 | AP62: 155.56
C63: 남 | D63: 819 | E63: 0.95 | G63: 43 | H63: 0.59 | J63: 21 | K63: 0.63 | M63: 52 | N63: 0.8 | P63: 84 | Q63: 1.12 | S63: 207 | T63: 1.61 | V63: 71 | W63: 0.74 | Y63: 48 | Z63: 0.83 | AB63: 68 | AC63: 0.94 | AE63: 85 | AF63: 1.07 | AH63: 68 | AI63: 0.82 | AK63: 44 | AL63: 0.64 | AN63: 28 | AO63: 0.85
C64: 여 | D64: 714 | E64: 0.85 | G64: 34 | H64: 0.51 | J64: 19 | K64: 0.63 | M64: 44 | N64: 0.71 | P64: 67 | Q64: 0.87 | S64: 193 | T64: 1.48 | V64: 73 | W64: 0.83 | Y64: 44 | Z64: 0.67 | AB64: 64 | AC64: 0.83 | AE64: 40 | AF64: 0.53 | AH64: 72 | AI64: 0.92 | AK64: 46 | AL64: 0.78 | AN64: 18 | AO64: 0.65
B65: 18세 | C65: 계 | D65: 1485 | E65: 0.87 | F65: 110.04 | G65: 107 | H65: 0.77 | I65: 87.72 | J65: 30 | K65: 0.47 | L65: 114.29 | M65: 98 | N65: 0.77 | O65: 139.02 | P65: 146 | Q65: 0.96 | R65: 128.13 | S65: 338 | T65: 1.31 | U65: 97.66 | V65: 147 | W65: 0.8 | X65: 122.73 | Y65: 109 | Z65: 0.88 | AA65: 101.85 | AB65: 138 | AC65: 0.92 | AD65: 97.14 | AE65: 104 | AF65: 0.67 | AG65: 173.68 | AH65: 129 | AI65: 0.8 | AJ65: 104.76 | AK65: 100 | AL65: 0.78 | AM65: 104.08 | AN65: 39 | AO65: 0.65 | AP65: 95
C66: 남 | D66: 778 | E66: 0.9 | G66: 50 | H66: 0.69 | J66: 16 | K66: 0.48 | M66: 57 | N66: 0.88 | P66: 82 | Q66: 1.09 | S66: 167 | T66: 1.3 | V66: 81 | W66: 0.84 | Y66: 55 | Z66: 0.96 | AB66: 68 | AC66: 0.94 | AE66: 66 | AF66: 0.83 | AH66: 66 | AI66: 0.8 | AK66: 51 | AL66: 0.74 | AN66: 19 | AO66: 0.58
C67: 여 | D67: 707 | E67: 0.85 | G67: 57 | H67: 0.86 | J67: 14 | K67: 0.46 | M67: 41 | N67: 0.66 | P67: 64 | Q67: 0.84 | S67: 171 | T67: 1.31 | V67: 66 | W67: 0.75 | Y67: 54 | Z67: 0.82 | AB67: 70 | AC67: 0.91 | AE67: 38 | AF67: 0.51 | AH67: 63 | AI67: 0.8 | AK67: 49 | AL67: 0.83 | AN67: 20 | AO67: 0.73
B68: 19세 | C68: 계 | D68: 1621 | E68: 0.95 | F68: 115.85 | G68: 165 | H68: 1.19 | I68: 83.33 | J68: 51 | K68: 0.8 | L68: 183.33 | M68: 113 | N68: 0.89 | O68: 101.79 | P68: 149 | Q68: 0.98 | R68: 106.94 | S68: 317 | T68: 1.22 | U68: 134.81 | V68: 155 | W68: 0.84 | X68: 118.31 | Y68: 103 | Z68: 0.84 | AA68: 94.34 | AB68: 151 | AC68: 1.01 | AD68: 106.85 | AE68: 126 | AF68: 0.82 | AG68: 152 | AH68: 125 | AI68: 0.78 | AJ68: 123.21 | AK68: 117 | AL68: 0.91 | AM68: 120.75 | AN68: 49 | AO68: 0.81 | AP68: 104.17
C69: 남 | D69: 870 | E69: 1.01 | G69: 75 | H69: 1.04 | J69: 33 | K69: 0.99 | M69: 57 | N69: 0.88 | P69: 77 | Q69: 1.02 | S69: 182 | T69: 1.42 | V69: 84 | W69: 0.87 | Y69: 50 | Z69: 0.87 | AB69: 78 | AC69: 1.07 | AE69: 76 | AF69: 0.96 | AH69: 69 | AI69: 0.84 | AK69: 64 | AL69: 0.93 | AN69: 25 | AO69: 0.76
C70: 여 | D70: 751 | E70: 0.9 | G70: 90 | H70: 1.36 | J70: 18 | K70: 0.59 | M70: 56 | N70: 0.91 | P70: 72 | Q70: 0.94 | S70: 135 | T70: 1.03 | V70: 71 | W70: 0.8 | Y70: 53 | Z70: 0.81 | AB70: 73 | AC70: 0.95 | AE70: 50 | AF70: 0.67 | AH70: 56 | AI70: 0.71 | AK70: 53 | AL70: 0.9 | AN70: 24 | AO70: 0.87
B71: 20세 | C71: 계 | D71: 1721 | E71: 1.01 | F71: 113.52 | G71: 226 | H71: 1.63 | I71: 48.68 | J71: 45 | K71: 0.71 | L71: 221.43 | M71: 77 | N71: 0.61 | O71: 148.39 | P71: 184 | Q71: 1.21 | R71: 124.39 | S71: 360 | T71: 1.39 | U71: 148.28 | V71: 160 | W71: 0.87 | X71: 92.77 | Y71: 89 | Z71: 0.72 | AA71: 111.9 | AB71: 152 | AC71: 1.02 | AD71: 141.27 | AE71: 124 | AF71: 0.8 | AG71: 117.54 | AH71: 124 | AI71: 0.77 | AJ71: 103.28 | AK71: 125 | AL71: 0.97 | AM71: 155.1 | AN71: 55 | AO71: 0.91 | AP71: 103.7
C72: 남 | D72: 915 | E72: 1.06 | G72: 74 | H72: 1.02 | J72: 31 | K72: 0.93 | M72: 46 | N72: 0.71 | P72: 102 | Q72: 1.35 | S72: 215 | T72: 1.68 | V72: 77 | W72: 0.8 | Y72: 47 | Z72: 0.82 | AB72: 89 | AC72: 1.22 | AE72: 67 | AF72: 0.84 | AH72: 63 | AI72: 0.76 | AK72: 76 | AL72: 1.1 | AN72: 28 | AO72: 0.85
C73: 여 | D73: 806 | E73: 0.96 | G73: 152 | H73: 2.3 | J73: 14 | K73: 0.46 | M73: 31 | N73: 0.5 | P73: 82 | Q73: 1.07 | S73: 145 | T73: 1.11 | V73: 83 | W73: 0.94 | Y73: 42 | Z73: 0.64 | AB73: 63 | AC73: 0.82 | AE73: 57 | AF73: 0.76 | AH73: 61 | AI73: 0.78 | AK73: 49 | AL73: 0.83 | AN73: 27 | AO73: 0.98
B74: 21세 | C74: 계 | D74: 1791 | E74: 1.05 | F74: 110.46 | G74: 244 | H74: 1.76 | I74: 69.44 | J74: 60 | K74: 0.94 | L74: 122.22 | M74: 92 | N74: 0.73 | O74: 142.11 | P74: 185 | Q74: 1.22 | R74: 107.87 | S74: 319 | T74: 1.23 | U74: 136.3 | V74: 231 | W74: 1.25 | X74: 102.63 | Y74: 90 | Z74: 0.73 | AA74: 87.5 | AB74: 148 | AC74: 0.99 | AD74: 124.24 | AE74: 127 | AF74: 0.82 | AG74: 111.67 | AH74: 124 | AI74: 0.77 | AJ74: 113.79 | AK74: 138 | AL74: 1.08 | AM74: 126.23 | AN74: 33 | AO74: 0.55 | AP74: 200
C75: 남 | D75: 940 | E75: 1.09 | G75: 100 | H75: 1.38 | J75: 33 | K75: 0.99 | M75: 54 | N75: 0.83 | P75: 96 | Q75: 1.28 | S75: 184 | T75: 1.43 | V75: 117 | W75: 1.21 | Y75: 42 | Z75: 0.73 | AB75: 82 | AC75: 1.13 | AE75: 67 | AF75: 0.84 | AH75: 66 | AI75: 0.8 | AK75: 77 | AL75: 1.12 | AN75: 22 | AO75: 0.67
C76: 여 | D76: 851 | E76: 1.02 | G76: 144 | H76: 2.17 | J76: 27 | K76: 0.89 | M76: 38 | N76: 0.62 | P76: 89 | Q76: 1.16 | S76: 135 | T76: 1.03 | V76: 114 | W76: 1.29 | Y76: 48 | Z76: 0.73 | AB76: 66 | AC76: 0.86 | AE76: 60 | AF76: 0.8 | AH76: 58 | AI76: 0.74 | AK76: 61 | AL76: 1.03 | AN76: 11 | AO76: 0.4
B77: 22세 | C77: 계 | D77: 1956 | E77: 1.15 | F77: 111.69 | G77: 266 | H77: 1.92 | I77: 80.95 | J77: 48 | K77: 0.76 | L77: 200 | M77: 106 | N77: 0.84 | O77: 85.96 | P77: 182 | Q77: 1.2 | R77: 95.7 | S77: 363 | T77: 1.4 | U77: 107.43 | V77: 213 | W77: 1.15 | X77: 159.76 | Y77: 102 | Z77: 0.83 | AA77: 108.16 | AB77: 165 | AC77: 1.1 | AD77: 120 | AE77: 149 | AF77: 0.96 | AG77: 129.23 | AH77: 138 | AI77: 0.86 | AJ77: 119.05 | AK77: 163 | AL77: 1.27 | AM77: 117.33 | AN77: 61 | AO77: 1.01 | AP77: 125.93
C78: 남 | D78: 1032 | E78: 1.19 | G78: 119 | H78: 1.64 | J78: 32 | K78: 0.96 | M78: 49 | N78: 0.76 | P78: 89 | Q78: 1.18 | S78: 188 | T78: 1.46 | V78: 131 | W78: 1.36 | Y78: 53 | Z78: 0.92 | AB78: 90 | AC78: 1.24 | AE78: 84 | AF78: 1.06 | AH78: 75 | AI78: 0.91 | AK78: 88 | AL78: 1.27 | AN78: 34 | AO78: 1.04
C79: 여 | D79: 924 | E79: 1.1 | G79: 147 | H79: 2.22 | J79: 16 | K79: 0.53 | M79: 57 | N79: 0.92 | P79: 93 | Q79: 1.21 | S79: 175 | T79: 1.34 | V79: 82 | W79: 0.93 | Y79: 49 | Z79: 0.75 | AB79: 75 | AC79: 0.98 | AE79: 65 | AF79: 0.87 | AH79: 63 | AI79: 0.8 | AK79: 75 | AL79: 1.27 | AN79: 27 | AO79: 0.98
B80: 23세 | C80: 계 | D80: 2126 | E80: 1.25 | F80: 119.63 | G80: 259 | H80: 1.87 | I80: 127.19 | J80: 66 | K80: 1.04 | L80: 88.57 | M80: 118 | N80: 0.93 | O80: 100 | P80: 190 | Q80: 1.25 | R80: 108.79 | S80: 386 | T80: 1.49 | U80: 124.42 | V80: 259 | W80: 1.4 | X80: 123.28 | Y80: 115 | Z80: 0.93 | AA80: 155.56 | AB80: 208 | AC80: 1.39 | AD80: 114.43 | AE80: 168 | AF80: 1.09 | AG80: 88.76 | AH80: 132 | AI80: 0.82 | AJ80: 169.39 | AK80: 159 | AL80: 1.24 | AM80: 148.44 | AN80: 66 | AO80: 1.09 | AP80: 78.38
C81: 남 | D81: 1158 | E81: 1.34 | G81: 145 | H81: 2 | J81: 31 | K81: 0.93 | M81: 59 | N81: 0.91 | P81: 99 | Q81: 1.31 | S81: 214 | T81: 1.67 | V81: 143 | W81: 1.48 | Y81: 70 | Z81: 1.22 | AB81: 111 | AC81: 1.53 | AE81: 79 | AF81: 0.99 | AH81: 83 | AI81: 1.01 | AK81: 95 | AL81: 1.38 | AN81: 29 | AO81: 0.88
C82: 여 | D82: 968 | E82: 1.16 | G82: 114 | H82: 1.72 | J82: 35 | K82: 1.15 | M82: 59 | N82: 0.96 | P82: 91 | Q82: 1.19 | S82: 172 | T82: 1.32 | V82: 116 | W82: 1.31 | Y82: 45 | Z82: 0.69 | AB82: 97 | AC82: 1.26 | AE82: 89 | AF82: 1.19 | AH82: 49 | AI82: 0.62 | AK82: 64 | AL82: 1.08 | AN82: 37 | AO82: 1.34
B83: 24세 | C83: 계 | D83: 2227 | E83: 1.31 | F83: 133.44 | G83: 259 | H83: 1.87 | I83: 153.92 | J83: 61 | K83: 0.96 | L83: 125.93 | M83: 117 | N83: 0.93 | O83: 154.35 | P83: 164 | Q83: 1.08 | R83: 134.29 | S83: 407 | T83: 1.57 | U83: 105.56 | V83: 300 | W83: 1.62 | X83: 109.79 | Y83: 130 | Z83: 1.05 | AA83: 128.07 | AB83: 189 | AC83: 1.26 | AD83: 173.91 | AE83: 157 | AF83: 1.02 | AG83: 141.54 | AH83: 164 | AI83: 1.02 | AJ83: 127.78 | AK83: 186 | AL83: 1.45 | AM83: 195.24 | AN83: 93 | AO83: 1.54 | AP83: 121.43
C84: 남 | D84: 1273 | E84: 1.47 | G84: 157 | H84: 2.17 | J84: 34 | K84: 1.02 | M84: 71 | N84: 1.1 | P84: 94 | Q84: 1.25 | S84: 209 | T84: 1.63 | V84: 157 | W84: 1.63 | Y84: 73 | Z84: 1.27 | AB84: 120 | AC84: 1.65 | AE84: 92 | AF84: 1.16 | AH84: 92 | AI84: 1.12 | AK84: 123 | AL84: 1.78 | AN84: 51 | AO84: 1.56
C85: 여 | D85: 954 | E85: 1.14 | G85: 102 | H85: 1.54 | J85: 27 | K85: 0.89 | M85: 46 | N85: 0.75 | P85: 70 | Q85: 0.91 | S85: 198 | T85: 1.52 | V85: 143 | W85: 1.62 | Y85: 57 | Z85: 0.87 | AB85: 69 | AC85: 0.9 | AE85: 65 | AF85: 0.87 | AH85: 72 | AI85: 0.92 | AK85: 63 | AL85: 1.06 | AN85: 42 | AO85: 1.53
B86: 25세 | C86: 계 | D86: 2173 | E86: 1.28 | F86: 130.92 | G86: 181 | H86: 1.31 | I86: 147.95 | J86: 66 | K86: 1.04 | L86: 153.85 | M86: 124 | N86: 0.98 | O86: 143.14 | P86: 187 | Q86: 1.23 | R86: 133.75 | S86: 343 | T86: 1.32 | U86: 122.73 | V86: 265 | W86: 1.43 | X86: 110.32 | Y86: 135 | Z86: 1.1 | AA86: 110.94 | AB86: 181 | AC86: 1.21 | AD86: 135.06 | AE86: 190 | AF86: 1.23 | AG86: 167.61 | AH86: 199 | AI86: 1.24 | AJ86: 126.14 | AK86: 203 | AL86: 1.58 | AM86: 128.09 | AN86: 99 | AO86: 1.64 | AP86: 135.71
C87: 남 | D87: 1232 | E87: 1.43 | G87: 108 | H87: 1.49 | J87: 40 | K87: 1.2 | M87: 73 | N87: 1.13 | P87: 107 | Q87: 1.42 | S87: 189 | T87: 1.47 | V87: 139 | W87: 1.44 | Y87: 71 | Z87: 1.23 | AB87: 104 | AC87: 1.43 | AE87: 119 | AF87: 1.5 | AH87: 111 | AI87: 1.35 | AK87: 114 | AL87: 1.65 | AN87: 57 | AO87: 1.74
C88: 여 | D88: 941 | E88: 1.12 | G88: 73 | H88: 1.1 | J88: 26 | K88: 0.86 | M88: 51 | N88: 0.83 | P88: 80 | Q88: 1.04 | S88: 154 | T88: 1.18 | V88: 126 | W88: 1.43 | Y88: 64 | Z88: 0.97 | AB88: 77 | AC88: 1 | AE88: 71 | AF88: 0.95 | AH88: 88 | AI88: 1.12 | AK88: 89 | AL88: 1.5 | AN88: 42 | AO88: 1.53
B89: 26세 | C89: 계 | D89: 2238 | E89: 1.32 | F89: 121.36 | G89: 199 | H89: 1.44 | I89: 101.01 | J89: 58 | K89: 0.91 | L89: 93.33 | M89: 138 | N89: 1.09 | O89: 119.05 | P89: 200 | Q89: 1.32 | R89: 115.05 | S89: 351 | T89: 1.36 | U89: 108.93 | V89: 261 | W89: 1.41 | X89: 119.33 | Y89: 155 | Z89: 1.26 | AA89: 118.31 | AB89: 171 | AC89: 1.14 | AD89: 194.83 | AE89: 196 | AF89: 1.27 | AG89: 108.51 | AH89: 190 | AI89: 1.18 | AJ89: 134.57 | AK89: 195 | AL89: 1.52 | AM89: 163.51 | AN89: 124 | AO89: 2.06 | AP89: 103.28
C90: 남 | D90: 1227 | E90: 1.42 | G90: 100 | H90: 1.38 | J90: 28 | K90: 0.84 | M90: 75 | N90: 1.16 | P90: 107 | Q90: 1.42 | S90: 183 | T90: 1.43 | V90: 142 | W90: 1.47 | Y90: 84 | Z90: 1.46 | AB90: 113 | AC90: 1.55 | AE90: 102 | AF90: 1.28 | AH90: 109 | AI90: 1.32 | AK90: 121 | AL90: 1.75 | AN90: 63 | AO90: 1.92
C91: 여 | D91: 1011 | E91: 1.21 | G91: 99 | H91: 1.5 | J91: 30 | K91: 0.99 | M91: 63 | N91: 1.02 | P91: 93 | Q91: 1.21 | S91: 168 | T91: 1.29 | V91: 119 | W91: 1.35 | Y91: 71 | Z91: 1.08 | AB91: 58 | AC91: 0.75 | AE91: 94 | AF91: 1.25 | AH91: 81 | AI91: 1.03 | AK91: 74 | AL91: 1.25 | AN91: 61 | AO91: 2.22
B92: 27세 | C92: 계 | D92: 2279 | E92: 1.34 | F92: 118.71 | G92: 177 | H92: 1.28 | I92: 108.24 | J92: 73 | K92: 1.15 | L92: 73.81 | M92: 147 | N92: 1.16 | O92: 110 | P92: 185 | Q92: 1.22 | R92: 115.12 | S92: 368 | T92: 1.42 | U92: 117.75 | V92: 305 | W92: 1.65 | X92: 132.82 | Y92: 137 | Z92: 1.11 | AA92: 77.92 | AB92: 178 | AC92: 1.19 | AD92: 95.6 | AE92: 220 | AF92: 1.42 | AG92: 141.76 | AH92: 191 | AI92: 1.19 | AJ92: 172.86 | AK92: 197 | AL92: 1.54 | AM92: 129.07 | AN92: 101 | AO92: 1.67 | AP92: 129.55
C93: 남 | D93: 1237 | E93: 1.43 | G93: 92 | H93: 1.27 | J93: 31 | K93: 0.93 | M93: 77 | N93: 1.19 | P93: 99 | Q93: 1.31 | S93: 199 | T93: 1.55 | V93: 174 | W93: 1.81 | Y93: 60 | Z93: 1.04 | AB93: 87 | AC93: 1.2 | AE93: 129 | AF93: 1.62 | AH93: 121 | AI93: 1.47 | AK93: 111 | AL93: 1.61 | AN93: 57 | AO93: 1.74
C94: 여 | D94: 1042 | E94: 1.25 | G94: 85 | H94: 1.28 | J94: 42 | K94: 1.38 | M94: 70 | N94: 1.14 | P94: 86 | Q94: 1.12 | S94: 169 | T94: 1.29 | V94: 131 | W94: 1.48 | Y94: 77 | Z94: 1.17 | AB94: 91 | AC94: 1.18 | AE94: 91 | AF94: 1.21 | AH94: 70 | AI94: 0.89 | AK94: 86 | AL94: 1.45 | AN94: 44 | AO94: 1.6
B95: 28세 | C95: 계 | D95: 2309 | E95: 1.36 | F95: 122.02 | G95: 172 | H95: 1.24 | I95: 156.72 | J95: 82 | K95: 1.29 | L95: 121.62 | M95: 160 | N95: 1.27 | O95: 105.13 | P95: 217 | Q95: 1.43 | R95: 90.35 | S95: 331 | T95: 1.28 | U95: 120.67 | V95: 319 | W95: 1.73 | X95: 139.85 | Y95: 138 | Z95: 1.12 | AA95: 126.23 | AB95: 163 | AC95: 1.09 | AD95: 120.27 | AE95: 216 | AF95: 1.4 | AG95: 132.26 | AH95: 202 | AI95: 1.26 | AJ95: 100 | AK95: 210 | AL95: 1.64 | AM95: 135.96 | AN95: 99 | AO95: 1.64 | AP95: 130.23
C96: 남 | D96: 1269 | E96: 1.47 | G96: 105 | H96: 1.45 | J96: 45 | K96: 1.36 | M96: 82 | N96: 1.27 | P96: 103 | Q96: 1.37 | S96: 181 | T96: 1.41 | V96: 186 | W96: 1.93 | Y96: 77 | Z96: 1.34 | AB96: 89 | AC96: 1.22 | AE96: 123 | AF96: 1.55 | AH96: 101 | AI96: 1.23 | AK96: 121 | AL96: 1.75 | AN96: 56 | AO96: 1.71
C97: 여 | D97: 1040 | E97: 1.24 | G97: 67 | H97: 1.01 | J97: 37 | K97: 1.22 | M97: 78 | N97: 1.27 | P97: 114 | Q97: 1.49 | S97: 150 | T97: 1.15 | V97: 133 | W97: 1.51 | Y97: 61 | Z97: 0.93 | AB97: 74 | AC97: 0.96 | AE97: 93 | AF97: 1.24 | AH97: 101 | AI97: 1.29 | AK97: 89 | AL97: 1.5 | AN97: 43 | AO97: 1.56
B98: 29세 | C98: 계 | D98: 2258 | E98: 1.33 | F98: 131.35 | G98: 166 | H98: 1.2 | I98: 147.76 | J98: 70 | K98: 1.1 | L98: 180 | M98: 138 | N98: 1.09 | O98: 109.09 | P98: 157 | Q98: 1.03 | R98: 134.33 | S98: 337 | T98: 1.3 | U98: 120.26 | V98: 297 | W98: 1.61 | X98: 132.03 | Y98: 157 | Z98: 1.27 | AA98: 127.54 | AB98: 151 | AC98: 1.01 | AD98: 106.85 | AE98: 227 | AF98: 1.47 | AG98: 152.22 | AH98: 217 | AI98: 1.35 | AJ98: 114.85 | AK98: 235 | AL98: 1.83 | AM98: 150 | AN98: 106 | AO98: 1.76 | AP98: 146.51
C99: 남 | D99: 1282 | E99: 1.48 | G99: 99 | H99: 1.37 | J99: 45 | K99: 1.36 | M99: 72 | N99: 1.11 | P99: 90 | Q99: 1.2 | S99: 184 | T99: 1.43 | V99: 169 | W99: 1.75 | Y99: 88 | Z99: 1.53 | AB99: 78 | AC99: 1.07 | AE99: 137 | AF99: 1.72 | AH99: 116 | AI99: 1.41 | AK99: 141 | AL99: 2.04 | AN99: 63 | AO99: 1.92
C100: 여 | D100: 976 | E100: 1.17 | G100: 67 | H100: 1.01 | J100: 25 | K100: 0.82 | M100: 66 | N100: 1.07 | P100: 67 | Q100: 0.87 | S100: 153 | T100: 1.17 | V100: 128 | W100: 1.45 | Y100: 69 | Z100: 1.05 | AB100: 73 | AC100: 0.95 | AE100: 90 | AF100: 1.2 | AH100: 101 | AI100: 1.29 | AK100: 94 | AL100: 1.59 | AN100: 43 | AO100: 1.56
B101: 30세 | C101: 계 | D101: 2176 | E101: 1.28 | F101: 120.47 | G101: 170 | H101: 1.23 | I101: 117.95 | J101: 64 | K101: 1.01 | L101: 156 | M101: 167 | N101: 1.32 | O101: 128.77 | P101: 170 | Q101: 1.12 | R101: 157.58 | S101: 265 | T101: 1.02 | U101: 96.3 | V101: 280 | W101: 1.52 | X101: 127.64 | Y101: 143 | Z101: 1.16 | AA101: 113.43 | AB101: 149 | AC101: 1 | AD101: 101.35 | AE101: 223 | AF101: 1.44 | AG101: 106.48 | AH101: 240 | AI101: 1.49 | AJ101: 90.48 | AK101: 203 | AL101: 1.58 | AM101: 167.11 | AN101: 102 | AO101: 1.69 | AP101: 183.33
C102: 남 | D102: 1189 | E102: 1.38 | G102: 92 | H102: 1.27 | J102: 39 | K102: 1.17 | M102: 94 | N102: 1.45 | P102: 104 | Q102: 1.38 | S102: 130 | T102: 1.01 | V102: 157 | W102: 1.63 | Y102: 76 | Z102: 1.32 | AB102: 75 | AC102: 1.03 | AE102: 115 | AF102: 1.45 | AH102: 114 | AI102: 1.38 | AK102: 127 | AL102: 1.84 | AN102: 66 | AO102: 2.01
C103: 여 | D103: 987 | E103: 1.18 | G103: 78 | H103: 1.18 | J103: 25 | K103: 0.82 | M103: 73 | N103: 1.18 | P103: 66 | Q103: 0.86 | S103: 135 | T103: 1.03 | V103: 123 | W103: 1.39 | Y103: 67 | Z103: 1.02 | AB103: 74 | AC103: 0.96 | AE103: 108 | AF103: 1.44 | AH103: 126 | AI103: 1.61 | AK103: 76 | AL103: 1.28 | AN103: 36 | AO103: 1.31
B104: 31세 | C104: 계 | D104: 2299 | E104: 1.35 | F104: 133.88 | G104: 168 | H104: 1.21 | I104: 154.55 | J104: 71 | K104: 1.12 | L104: 136.67 | M104: 188 | N104: 1.49 | O104: 144.16 | P104: 195 | Q104: 1.28 | R104: 134.94 | S104: 278 | T104: 1.07 | U104: 126.02 | V104: 257 | W104: 1.39 | X104: 179.35 | Y104: 180 | Z104: 1.46 | AA104: 81.82 | AB104: 160 | AC104: 1.07 | AD104: 122.22 | AE104: 260 | AF104: 1.68 | AG104: 116.67 | AH104: 226 | AI104: 1.4 | AJ104: 137.89 | AK104: 208 | AL104: 1.62 | AM104: 166.67 | AN104: 108 | AO104: 1.79 | AP104: 125
C105: 남 | D105: 1316 | E105: 1.52 | G105: 102 | H105: 1.41 | J105: 41 | K105: 1.23 | M105: 111 | N105: 1.71 | P105: 112 | Q105: 1.49 | S105: 155 | T105: 1.21 | V105: 165 | W105: 1.71 | Y105: 81 | Z105: 1.41 | AB105: 88 | AC105: 1.21 | AE105: 140 | AF105: 1.76 | AH105: 131 | AI105: 1.59 | AK105: 130 | AL105: 1.88 | AN105: 60 | AO105: 1.83
C106: 여 | D106: 983 | E106: 1.18 | G106: 66 | H106: 1 | J106: 30 | K106: 0.99 | M106: 77 | N106: 1.25 | P106: 83 | Q106: 1.08 | S106: 123 | T106: 0.94 | V106: 92 | W106: 1.04 | Y106: 99 | Z106: 1.51 | AB106: 72 | AC106: 0.94 | AE106: 120 | AF106: 1.6 | AH106: 95 | AI106: 1.21 | AK106: 78 | AL106: 1.32 | AN106: 48 | AO106: 1.74
B107: 32세 | C107: 계 | D107: 2171 | E107: 1.28 | F107: 127.09 | G107: 150 | H107: 1.08 | I107: 158.62 | J107: 86 | K107: 1.35 | L107: 145.71 | M107: 145 | N107: 1.15 | O107: 145.76 | P107: 151 | Q107: 0.99 | R107: 160.34 | S107: 255 | T107: 0.99 | U107: 102.38 | V107: 253 | W107: 1.37 | X107: 140.95 | Y107: 176 | Z107: 1.43 | AA107: 93.41 | AB107: 150 | AC107: 1 | AD107: 111.27 | AE107: 268 | AF107: 1.74 | AG107: 123.33 | AH107: 249 | AI107: 1.55 | AJ107: 97.62 | AK107: 197 | AL107: 1.54 | AM107: 173.61 | AN107: 91 | AO107: 1.51 | AP107: 160
C108: 남 | D108: 1215 | E108: 1.41 | G108: 92 | H108: 1.27 | J108: 51 | K108: 1.54 | M108: 86 | N108: 1.33 | P108: 93 | Q108: 1.24 | S108: 129 | T108: 1.01 | V108: 148 | W108: 1.54 | Y108: 85 | Z108: 1.48 | AB108: 79 | AC108: 1.09 | AE108: 148 | AF108: 1.86 | AH108: 123 | AI108: 1.49 | AK108: 125 | AL108: 1.81 | AN108: 56 | AO108: 1.71
C109: 여 | D109: 956 | E109: 1.14 | G109: 58 | H109: 0.88 | J109: 35 | K109: 1.15 | M109: 59 | N109: 0.96 | P109: 58 | Q109: 0.76 | S109: 126 | T109: 0.97 | V109: 105 | W109: 1.19 | Y109: 91 | Z109: 1.39 | AB109: 71 | AC109: 0.92 | AE109: 120 | AF109: 1.6 | AH109: 126 | AI109: 1.61 | AK109: 72 | AL109: 1.22 | AN109: 35 | AO109: 1.27
B110: 33세 | C110: 계 | D110: 2002 | E110: 1.18 | F110: 134.7 | G110: 137 | H110: 0.99 | I110: 158.49 | J110: 73 | K110: 1.15 | L110: 192 | M110: 151 | N110: 1.19 | O110: 169.64 | P110: 134 | Q110: 0.88 | R110: 139.29 | S110: 248 | T110: 0.96 | U110: 119.47 | V110: 206 | W110: 1.12 | X110: 145.24 | Y110: 173 | Z110: 1.4 | AA110: 92.22 | AB110: 134 | AC110: 0.9 | AD110: 131.03 | AE110: 244 | AF110: 1.58 | AG110: 112.17 | AH110: 235 | AI110: 1.46 | AJ110: 107.96 | AK110: 169 | AL110: 1.32 | AM110: 177.05 | AN110: 98 | AO110: 1.63 | AP110: 237.93
C111: 남 | D111: 1149 | E111: 1.33 | G111: 84 | H111: 1.16 | J111: 48 | K111: 1.45 | M111: 95 | N111: 1.47 | P111: 78 | Q111: 1.04 | S111: 135 | T111: 1.05 | V111: 122 | W111: 1.27 | Y111: 83 | Z111: 1.44 | AB111: 76 | AC111: 1.05 | AE111: 129 | AF111: 1.62 | AH111: 122 | AI111: 1.48 | AK111: 108 | AL111: 1.56 | AN111: 69 | AO111: 2.1
C112: 여 | D112: 853 | E112: 1.02 | G112: 53 | H112: 0.8 | J112: 25 | K112: 0.82 | M112: 56 | N112: 0.91 | P112: 56 | Q112: 0.73 | S112: 113 | T112: 0.87 | V112: 84 | W112: 0.95 | Y112: 90 | Z112: 1.37 | AB112: 58 | AC112: 0.75 | AE112: 115 | AF112: 1.53 | AH112: 113 | AI112: 1.44 | AK112: 61 | AL112: 1.03 | AN112: 29 | AO112: 1.05
B113: 34세 | C113: 계 | D113: 1921 | E113: 1.13 | F113: 135.71 | G113: 125 | H113: 0.9 | I113: 184.09 | J113: 78 | K113: 1.23 | L113: 188.89 | M113: 139 | N113: 1.1 | O113: 157.41 | P113: 135 | Q113: 0.89 | R113: 114.29 | S113: 217 | T113: 0.84 | U113: 123.71 | V113: 169 | W113: 0.91 | X113: 177.05 | Y113: 153 | Z113: 1.24 | AA113: 96.15 | AB113: 133 | AC113: 0.89 | AD113: 107.81 | AE113: 254 | AF113: 1.64 | AG113: 141.9 | AH113: 257 | AI113: 1.6 | AJ113: 96.18 | AK113: 152 | AL113: 1.19 | AM113: 171.43 | AN113: 109 | AO113: 1.81 | AP113: 211.43
C114: 남 | D114: 1106 | E114: 1.28 | G114: 81 | H114: 1.12 | J114: 51 | K114: 1.54 | M114: 85 | N114: 1.31 | P114: 72 | Q114: 0.96 | S114: 120 | T114: 0.93 | V114: 108 | W114: 1.12 | Y114: 75 | Z114: 1.3 | AB114: 69 | AC114: 0.95 | AE114: 149 | AF114: 1.88 | AH114: 126 | AI114: 1.53 | AK114: 96 | AL114: 1.39 | AN114: 74 | AO114: 2.26
C115: 여 | D115: 815 | E115: 0.97 | G115: 44 | H115: 0.66 | J115: 27 | K115: 0.89 | M115: 54 | N115: 0.88 | P115: 63 | Q115: 0.82 | S115: 97 | T115: 0.74 | V115: 61 | W115: 0.69 | Y115: 78 | Z115: 1.19 | AB115: 64 | AC115: 0.83 | AE115: 105 | AF115: 1.4 | AH115: 131 | AI115: 1.67 | AK115: 56 | AL115: 0.95 | AN115: 35 | AO115: 1.27
B116: 35세 | C116: 계 | D116: 1815 | E116: 1.07 | F116: 134.5 | G116: 132 | H116: 0.95 | I116: 140 | J116: 65 | K116: 1.02 | L116: 91.18 | M116: 130 | N116: 1.03 | O116: 145.28 | P116: 124 | Q116: 0.82 | R116: 121.43 | S116: 220 | T116: 0.85 | U116: 109.52 | V116: 176 | W116: 0.95 | X116: 151.43 | Y116: 145 | Z116: 1.18 | AA116: 126.56 | AB116: 140 | AC116: 0.94 | AD116: 112.12 | AE116: 218 | AF116: 1.41 | AG116: 144.94 | AH116: 221 | AI116: 1.37 | AJ116: 125.51 | AK116: 141 | AL116: 1.1 | AM116: 206.52 | AN116: 103 | AO116: 1.71 | AP116: 171.05
C117: 남 | D117: 1041 | E117: 1.2 | G117: 77 | H117: 1.06 | J117: 31 | K117: 0.93 | M117: 77 | N117: 1.19 | P117: 68 | Q117: 0.9 | S117: 115 | T117: 0.9 | V117: 106 | W117: 1.1 | Y117: 81 | Z117: 1.41 | AB117: 74 | AC117: 1.02 | AE117: 129 | AF117: 1.62 | AH117: 123 | AI117: 1.49 | AK117: 95 | AL117: 1.38 | AN117: 65 | AO117: 1.98
C118: 여 | D118: 774 | E118: 0.93 | G118: 55 | H118: 0.83 | J118: 34 | K118: 1.12 | M118: 53 | N118: 0.86 | P118: 56 | Q118: 0.73 | S118: 105 | T118: 0.8 | V118: 70 | W118: 0.79 | Y118: 64 | Z118: 0.97 | AB118: 66 | AC118: 0.86 | AE118: 89 | AF118: 1.19 | AH118: 98 | AI118: 1.25 | AK118: 46 | AL118: 0.78 | AN118: 38 | AO118: 1.38
B119: 36세 | C119: 계 | D119: 1848 | E119: 1.09 | F119: 121.32 | G119: 132 | H119: 0.95 | I119: 116.39 | J119: 74 | K119: 1.16 | L119: 138.71 | M119: 132 | N119: 1.04 | O119: 112.9 | P119: 124 | Q119: 0.82 | R119: 103.28 | S119: 242 | T119: 0.93 | U119: 108.62 | V119: 196 | W119: 1.06 | X119: 113.04 | Y119: 150 | Z119: 1.22 | AA119: 123.88 | AB119: 119 | AC119: 0.8 | AD119: 98.33 | AE119: 184 | AF119: 1.19 | AG119: 155.56 | AH119: 279 | AI119: 1.73 | AJ119: 109.77 | AK119: 146 | AL119: 1.14 | AM119: 156.14 | AN119: 70 | AO119: 1.16 | AP119: 204.35
C120: 남 | D120: 1013 | E120: 1.17 | G120: 71 | H120: 0.98 | J120: 43 | K120: 1.3 | M120: 70 | N120: 1.08 | P120: 63 | Q120: 0.84 | S120: 126 | T120: 0.98 | V120: 104 | W120: 1.08 | Y120: 83 | Z120: 1.44 | AB120: 59 | AC120: 0.81 | AE120: 112 | AF120: 1.41 | AH120: 146 | AI120: 1.77 | AK120: 89 | AL120: 1.29 | AN120: 47 | AO120: 1.43
C121: 여 | D121: 835 | E121: 1 | G121: 61 | H121: 0.92 | J121: 31 | K121: 1.02 | M121: 62 | N121: 1.01 | P121: 61 | Q121: 0.8 | S121: 116 | T121: 0.89 | V121: 92 | W121: 1.04 | Y121: 67 | Z121: 1.02 | AB121: 60 | AC121: 0.78 | AE121: 72 | AF121: 0.96 | AH121: 133 | AI121: 1.7 | AK121: 57 | AL121: 0.96 | AN121: 23 | AO121: 0.84
B122: 37세 | C122: 계 | D122: 1765 | E122: 1.04 | F122: 121.46 | G122: 138 | H122: 1 | I122: 137.93 | J122: 47 | K122: 0.74 | L122: 123.81 | M122: 141 | N122: 1.11 | O122: 110.45 | P122: 118 | Q122: 0.78 | R122: 126.92 | S122: 232 | T122: 0.9 | U122: 109.01 | V122: 153 | W122: 0.83 | X122: 150.82 | Y122: 128 | Z122: 1.04 | AA122: 100 | AB122: 116 | AC122: 0.78 | AD122: 96.61 | AE122: 200 | AF122: 1.29 | AG122: 132.56 | AH122: 277 | AI122: 1.72 | AJ122: 113.08 | AK122: 143 | AL122: 1.12 | AM122: 126.98 | AN122: 72 | AO122: 1.19 | AP122: 188
C123: 남 | D123: 968 | E123: 1.12 | G123: 80 | H123: 1.1 | J123: 26 | K123: 0.78 | M123: 74 | N123: 1.14 | P123: 66 | Q123: 0.88 | S123: 121 | T123: 0.94 | V123: 92 | W123: 0.95 | Y123: 64 | Z123: 1.11 | AB123: 57 | AC123: 0.78 | AE123: 114 | AF123: 1.43 | AH123: 147 | AI123: 1.78 | AK123: 80 | AL123: 1.16 | AN123: 47 | AO123: 1.43
C124: 여 | D124: 797 | E124: 0.95 | G124: 58 | H124: 0.88 | J124: 21 | K124: 0.69 | M124: 67 | N124: 1.09 | P124: 52 | Q124: 0.68 | S124: 111 | T124: 0.85 | V124: 61 | W124: 0.69 | Y124: 64 | Z124: 0.97 | AB124: 59 | AC124: 0.77 | AE124: 86 | AF124: 1.15 | AH124: 130 | AI124: 1.66 | AK124: 63 | AL124: 1.06 | AN124: 25 | AO124: 0.91
B125: 38세 | C125: 계 | D125: 1847 | E125: 1.09 | F125: 117.29 | G125: 133 | H125: 0.96 | I125: 141.82 | J125: 67 | K125: 1.05 | L125: 91.43 | M125: 123 | N125: 0.97 | O125: 132.08 | P125: 131 | Q125: 0.86 | R125: 101.54 | S125: 231 | T125: 0.89 | U125: 110 | V125: 212 | W125: 1.15 | X125: 130.43 | Y125: 135 | Z125: 1.1 | AA125: 114.29 | AB125: 111 | AC125: 0.74 | AD125: 217.14 | AE125: 195 | AF125: 1.26 | AG125: 109.68 | AH125: 291 | AI125: 1.81 | AJ125: 95.3 | AK125: 139 | AL125: 1.08 | AM125: 113.85 | AN125: 79 | AO125: 1.31 | AP125: 125.71
C126: 남 | D126: 997 | E126: 1.15 | G126: 78 | H126: 1.08 | J126: 32 | K126: 0.96 | M126: 70 | N126: 1.08 | P126: 66 | Q126: 0.88 | S126: 121 | T126: 0.94 | V126: 120 | W126: 1.25 | Y126: 72 | Z126: 1.25 | AB126: 76 | AC126: 1.05 | AE126: 102 | AF126: 1.28 | AH126: 142 | AI126: 1.72 | AK126: 74 | AL126: 1.07 | AN126: 44 | AO126: 1.34
C127: 여 | D127: 850 | E127: 1.02 | G127: 55 | H127: 0.83 | J127: 35 | K127: 1.15 | M127: 53 | N127: 0.86 | P127: 65 | Q127: 0.85 | S127: 110 | T127: 0.84 | V127: 92 | W127: 1.04 | Y127: 63 | Z127: 0.96 | AB127: 35 | AC127: 0.46 | AE127: 93 | AF127: 1.24 | AH127: 149 | AI127: 1.9 | AK127: 65 | AL127: 1.1 | AN127: 35 | AO127: 1.27
B128: 39세 | C128: 계 | D128: 1751 | E128: 1.03 | F128: 121.65 | G128: 116 | H128: 0.84 | I128: 123.08 | J128: 58 | K128: 0.91 | L128: 93.33 | M128: 131 | N128: 1.04 | O128: 107.94 | P128: 105 | Q128: 0.69 | R128: 191.67 | S128: 265 | T128: 1.02 | U128: 105.43 | V128: 149 | W128: 0.81 | X128: 112.86 | Y128: 127 | Z128: 1.03 | AA128: 111.67 | AB128: 133 | AC128: 0.89 | AD128: 92.75 | AE128: 184 | AF128: 1.19 | AG128: 132.91 | AH128: 271 | AI128: 1.68 | AJ128: 110.08 | AK128: 132 | AL128: 1.03 | AM128: 169.39 | AN128: 80 | AO128: 1.33 | AP128: 233.33
C129: 남 | D129: 961 | E129: 1.11 | G129: 64 | H129: 0.88 | J129: 28 | K129: 0.84 | M129: 68 | N129: 1.05 | P129: 69 | Q129: 0.92 | S129: 136 | T129: 1.06 | V129: 79 | W129: 0.82 | Y129: 67 | Z129: 1.16 | AB129: 64 | AC129: 0.88 | AE129: 105 | AF129: 1.32 | AH129: 142 | AI129: 1.72 | AK129: 83 | AL129: 1.2 | AN129: 56 | AO129: 1.71
C130: 여 | D130: 790 | E130: 0.94 | G130: 52 | H130: 0.79 | J130: 30 | K130: 0.99 | M130: 63 | N130: 1.02 | P130: 36 | Q130: 0.47 | S130: 129 | T130: 0.99 | V130: 70 | W130: 0.79 | Y130: 60 | Z130: 0.91 | AB130: 69 | AC130: 0.9 | AE130: 79 | AF130: 1.05 | AH130: 129 | AI130: 1.64 | AK130: 49 | AL130: 0.83 | AN130: 24 | AO130: 0.87
B131: 40세 | C131: 계 | D131: 1894 | E131: 1.11 | F131: 115.47 | G131: 116 | H131: 0.84 | I131: 123.08 | J131: 66 | K131: 1.04 | L131: 83.33 | M131: 118 | N131: 0.93 | O131: 145.83 | P131: 142 | Q131: 0.93 | R131: 102.86 | S131: 277 | T131: 1.07 | U131: 99.28 | V131: 170 | W131: 0.92 | X131: 120.78 | Y131: 140 | Z131: 1.14 | AA131: 122.22 | AB131: 153 | AC131: 1.02 | AD131: 98.7 | AE131: 184 | AF131: 1.19 | AG131: 178.79 | AH131: 294 | AI131: 1.83 | AJ131: 92.16 | AK131: 136 | AL131: 1.06 | AM131: 115.87 | AN131: 98 | AO131: 1.63 | AP131: 180
C132: 남 | D132: 1015 | E132: 1.17 | G132: 64 | H132: 0.88 | J132: 30 | K132: 0.9 | M132: 70 | N132: 1.08 | P132: 72 | Q132: 0.96 | S132: 138 | T132: 1.08 | V132: 93 | W132: 0.97 | Y132: 77 | Z132: 1.34 | AB132: 76 | AC132: 1.05 | AE132: 118 | AF132: 1.49 | AH132: 141 | AI132: 1.71 | AK132: 73 | AL132: 1.06 | AN132: 63 | AO132: 1.92
C133: 여 | D133: 879 | E133: 1.05 | G133: 52 | H133: 0.79 | J133: 36 | K133: 1.19 | M133: 48 | N133: 0.78 | P133: 70 | Q133: 0.91 | S133: 139 | T133: 1.06 | V133: 77 | W133: 0.87 | Y133: 63 | Z133: 0.96 | AB133: 77 | AC133: 1 | AE133: 66 | AF133: 0.88 | AH133: 153 | AI133: 1.95 | AK133: 63 | AL133: 1.06 | AN133: 35 | AO133: 1.27
B134: 41세 | C134: 계 | D134: 2131 | E134: 1.25 | F134: 117.23 | G134: 140 | H134: 1.01 | I134: 180 | J134: 86 | K134: 1.35 | L134: 132.43 | M134: 136 | N134: 1.08 | O134: 138.6 | P134: 165 | Q134: 1.09 | R134: 103.7 | S134: 326 | T134: 1.26 | U134: 95.21 | V134: 246 | W134: 1.33 | X134: 141.18 | Y134: 136 | Z134: 1.1 | AA134: 102.99 | AB134: 161 | AC134: 1.08 | AD134: 87.21 | AE134: 203 | AF134: 1.31 | AG134: 130.68 | AH134: 319 | AI134: 1.98 | AJ134: 100.63 | AK134: 128 | AL134: 1 | AM134: 172.34 | AN134: 85 | AO134: 1.41 | AP134: 112.5
C135: 남 | D135: 1150 | E135: 1.33 | G135: 90 | H135: 1.24 | J135: 49 | K135: 1.48 | M135: 79 | N135: 1.22 | P135: 84 | Q135: 1.12 | S135: 159 | T135: 1.24 | V135: 144 | W135: 1.49 | Y135: 69 | Z135: 1.2 | AB135: 75 | AC135: 1.03 | AE135: 115 | AF135: 1.45 | AH135: 160 | AI135: 1.94 | AK135: 81 | AL135: 1.17 | AN135: 45 | AO135: 1.37
C136: 여 | D136: 981 | E136: 1.17 | G136: 50 | H136: 0.76 | J136: 37 | K136: 1.22 | M136: 57 | N136: 0.92 | P136: 81 | Q136: 1.06 | S136: 167 | T136: 1.28 | V136: 102 | W136: 1.15 | Y136: 67 | Z136: 1.02 | AB136: 86 | AC136: 1.12 | AE136: 88 | AF136: 1.17 | AH136: 159 | AI136: 2.03 | AK136: 47 | AL136: 0.79 | AN136: 40 | AO136: 1.45
B137: 42세 | C137: 계 | D137: 2358 | E137: 1.39 | F137: 111.1 | G137: 147 | H137: 1.06 | I137: 167.27 | J137: 99 | K137: 1.56 | L137: 80 | M137: 172 | N137: 1.36 | O137: 115 | P137: 187 | Q137: 1.23 | R137: 96.84 | S137: 373 | T137: 1.44 | U137: 93.26 | V137: 226 | W137: 1.22 | X137: 103.6 | Y137: 164 | Z137: 1.33 | AA137: 118.67 | AB137: 179 | AC137: 1.2 | AD137: 113.1 | AE137: 220 | AF137: 1.42 | AG137: 111.54 | AH137: 311 | AI137: 1.93 | AJ137: 105.96 | AK137: 177 | AL137: 1.38 | AM137: 124.05 | AN137: 103 | AO137: 1.71 | AP137: 194.29
C138: 남 | D138: 1241 | E138: 1.44 | G138: 92 | H138: 1.27 | J138: 44 | K138: 1.33 | M138: 92 | N138: 1.42 | P138: 92 | Q138: 1.22 | S138: 180 | T138: 1.4 | V138: 115 | W138: 1.19 | Y138: 89 | Z138: 1.55 | AB138: 95 | AC138: 1.31 | AE138: 116 | AF138: 1.46 | AH138: 160 | AI138: 1.94 | AK138: 98 | AL138: 1.42 | AN138: 68 | AO138: 2.07
C139: 여 | D139: 1117 | E139: 1.34 | G139: 55 | H139: 0.83 | J139: 55 | K139: 1.81 | M139: 80 | N139: 1.3 | P139: 95 | Q139: 1.24 | S139: 193 | T139: 1.48 | V139: 111 | W139: 1.26 | Y139: 75 | Z139: 1.14 | AB139: 84 | AC139: 1.09 | AE139: 104 | AF139: 1.39 | AH139: 151 | AI139: 1.92 | AK139: 79 | AL139: 1.33 | AN139: 35 | AO139: 1.27
B140: 43세 | C140: 계 | D140: 2344 | E140: 1.38 | F140: 110.79 | G140: 157 | H140: 1.13 | I140: 124.29 | J140: 103 | K140: 1.62 | L140: 202.94 | M140: 162 | N140: 1.28 | O140: 105.06 | P140: 195 | Q140: 1.28 | R140: 91.18 | S140: 399 | T140: 1.54 | U140: 84.72 | V140: 245 | W140: 1.33 | X140: 142.57 | Y140: 154 | Z140: 1.25 | AA140: 90.12 | AB140: 164 | AC140: 1.1 | AD140: 92.94 | AE140: 192 | AF140: 1.24 | AG140: 125.88 | AH140: 309 | AI140: 1.92 | AJ140: 127.21 | AK140: 165 | AL140: 1.29 | AM140: 117.11 | AN140: 99 | AO140: 1.64 | AP140: 110.64
C141: 남 | D141: 1232 | E141: 1.43 | G141: 87 | H141: 1.2 | J141: 69 | K141: 2.08 | M141: 83 | N141: 1.28 | P141: 93 | Q141: 1.24 | S141: 183 | T141: 1.43 | V141: 144 | W141: 1.49 | Y141: 73 | Z141: 1.27 | AB141: 79 | AC141: 1.09 | AE141: 107 | AF141: 1.35 | AH141: 173 | AI141: 2.1 | AK141: 89 | AL141: 1.29 | AN141: 52 | AO141: 1.59
C142: 여 | D142: 1112 | E142: 1.33 | G142: 70 | H142: 1.06 | J142: 34 | K142: 1.12 | M142: 79 | N142: 1.28 | P142: 102 | Q142: 1.33 | S142: 216 | T142: 1.65 | V142: 101 | W142: 1.14 | Y142: 81 | Z142: 1.23 | AB142: 85 | AC142: 1.11 | AE142: 85 | AF142: 1.13 | AH142: 136 | AI142: 1.73 | AK142: 76 | AL142: 1.28 | AN142: 47 | AO142: 1.71
B143: 44세 | C143: 계 | D143: 2372 | E143: 1.39 | F143: 111.22 | G143: 182 | H143: 1.31 | I143: 114.12 | J143: 103 | K143: 1.62 | L143: 101.96 | M143: 153 | N143: 1.21 | O143: 91.25 | P143: 203 | Q143: 1.34 | R143: 113.68 | S143: 364 | T143: 1.41 | U143: 101.1 | V143: 236 | W143: 1.28 | X143: 131.37 | Y143: 172 | Z143: 1.4 | AA143: 115 | AB143: 167 | AC143: 1.12 | AD143: 87.64 | AE143: 186 | AF143: 1.2 | AG143: 126.83 | AH143: 334 | AI143: 2.08 | AJ143: 121.19 | AK143: 157 | AL143: 1.22 | AM143: 118.06 | AN143: 115 | AO143: 1.91 | AP143: 109.09
C144: 남 | D144: 1249 | E144: 1.44 | G144: 97 | H144: 1.34 | J144: 52 | K144: 1.57 | M144: 73 | N144: 1.13 | P144: 108 | Q144: 1.43 | S144: 183 | T144: 1.43 | V144: 134 | W144: 1.39 | Y144: 92 | Z144: 1.6 | AB144: 78 | AC144: 1.07 | AE144: 104 | AF144: 1.31 | AH144: 183 | AI144: 2.22 | AK144: 85 | AL144: 1.23 | AN144: 60 | AO144: 1.83
C145: 여 | D145: 1123 | E145: 1.34 | G145: 85 | H145: 1.28 | J145: 51 | K145: 1.68 | M145: 80 | N145: 1.3 | P145: 95 | Q145: 1.24 | S145: 181 | T145: 1.39 | V145: 102 | W145: 1.15 | Y145: 80 | Z145: 1.22 | AB145: 89 | AC145: 1.16 | AE145: 82 | AF145: 1.09 | AH145: 151 | AI145: 1.92 | AK145: 72 | AL145: 1.22 | AN145: 55 | AO145: 2
B146: 45세 | C146: 계 | D146: 2234 | E146: 1.31 | F146: 103.28 | G146: 149 | H146: 1.07 | I146: 109.86 | J146: 75 | K146: 1.18 | L146: 150 | M146: 112 | N146: 0.89 | O146: 143.48 | P146: 222 | Q146: 1.46 | R146: 86.55 | S146: 393 | T146: 1.52 | U146: 78.64 | V146: 245 | W146: 1.33 | X146: 96 | Y146: 163 | Z146: 1.32 | AA146: 91.76 | AB146: 201 | AC146: 1.34 | AD146: 101 | AE146: 184 | AF146: 1.19 | AG146: 106.74 | AH146: 242 | AI146: 1.5 | AJ146: 146.94 | AK146: 144 | AL146: 1.12 | AM146: 97.26 | AN146: 104 | AO146: 1.72 | AP146: 141.86
C147: 남 | D147: 1135 | E147: 1.31 | G147: 78 | H147: 1.08 | J147: 45 | K147: 1.36 | M147: 66 | N147: 1.02 | P147: 103 | Q147: 1.37 | S147: 173 | T147: 1.35 | V147: 120 | W147: 1.25 | Y147: 78 | Z147: 1.35 | AB147: 101 | AC147: 1.39 | AE147: 95 | AF147: 1.2 | AH147: 144 | AI147: 1.75 | AK147: 71 | AL147: 1.03 | AN147: 61 | AO147: 1.86
C148: 여 | D148: 1099 | E148: 1.31 | G148: 71 | H148: 1.07 | J148: 30 | K148: 0.99 | M148: 46 | N148: 0.75 | P148: 119 | Q148: 1.55 | S148: 220 | T148: 1.69 | V148: 125 | W148: 1.41 | Y148: 85 | Z148: 1.29 | AB148: 100 | AC148: 1.3 | AE148: 89 | AF148: 1.19 | AH148: 98 | AI148: 1.25 | AK148: 73 | AL148: 1.23 | AN148: 43 | AO148: 1.56
B149: 46세 | C149: 계 | D149: 2330 | E149: 1.37 | F149: 106.56 | G149: 156 | H149: 1.13 | I149: 143.75 | J149: 78 | K149: 1.23 | L149: 122.86 | M149: 168 | N149: 1.33 | O149: 127.03 | P149: 200 | Q149: 1.32 | R149: 108.33 | S149: 435 | T149: 1.68 | U149: 78.28 | V149: 270 | W149: 1.46 | X149: 123.14 | Y149: 137 | Z149: 1.11 | AA149: 117.46 | AB149: 165 | AC149: 1.1 | AD149: 89.66 | AE149: 194 | AF149: 1.26 | AG149: 94 | AH149: 251 | AI149: 1.56 | AJ149: 112.71 | AK149: 180 | AL149: 1.4 | AM149: 119.51 | AN149: 96 | AO149: 1.59 | AP149: 118.18
C150: 남 | D150: 1202 | E150: 1.39 | G150: 92 | H150: 1.27 | J150: 43 | K150: 1.3 | M150: 94 | N150: 1.45 | P150: 104 | Q150: 1.38 | S150: 191 | T150: 1.49 | V150: 149 | W150: 1.55 | Y150: 74 | Z150: 1.29 | AB150: 78 | AC150: 1.07 | AE150: 94 | AF150: 1.18 | AH150: 133 | AI150: 1.61 | AK150: 98 | AL150: 1.42 | AN150: 52 | AO150: 1.59
C151: 여 | D151: 1128 | E151: 1.35 | G151: 64 | H151: 0.97 | J151: 35 | K151: 1.15 | M151: 74 | N151: 1.2 | P151: 96 | Q151: 1.25 | S151: 244 | T151: 1.87 | V151: 121 | W151: 1.37 | Y151: 63 | Z151: 0.96 | AB151: 87 | AC151: 1.13 | AE151: 100 | AF151: 1.33 | AH151: 118 | AI151: 1.5 | AK151: 82 | AL151: 1.39 | AN151: 44 | AO151: 1.6
B152: 47세 | C152: 계 | D152: 2265 | E152: 1.33 | F152: 100.98 | G152: 168 | H152: 1.21 | I152: 115.38 | J152: 79 | K152: 1.24 | L152: 119.44 | M152: 151 | N152: 1.19 | O152: 143.55 | P152: 201 | Q152: 1.32 | R152: 81.08 | S152: 390 | T152: 1.51 | U152: 83.96 | V152: 234 | W152: 1.27 | X152: 134 | Y152: 145 | Z152: 1.18 | AA152: 66.67 | AB152: 183 | AC152: 1.22 | AD152: 67.89 | AE152: 196 | AF152: 1.27 | AG152: 106.32 | AH152: 257 | AI152: 1.6 | AJ152: 131.53 | AK152: 165 | AL152: 1.29 | AM152: 101.22 | AN152: 96 | AO152: 1.59 | AP152: 118.18
C153: 남 | D153: 1138 | E153: 1.32 | G153: 90 | H153: 1.24 | J153: 43 | K153: 1.3 | M153: 89 | N153: 1.37 | P153: 90 | Q153: 1.2 | S153: 178 | T153: 1.39 | V153: 134 | W153: 1.39 | Y153: 58 | Z153: 1.01 | AB153: 74 | AC153: 1.02 | AE153: 101 | AF153: 1.27 | AH153: 146 | AI153: 1.77 | AK153: 83 | AL153: 1.2 | AN153: 52 | AO153: 1.59
C154: 여 | D154: 1127 | E154: 1.35 | G154: 78 | H154: 1.18 | J154: 36 | K154: 1.19 | M154: 62 | N154: 1.01 | P154: 111 | Q154: 1.45 | S154: 212 | T154: 1.62 | V154: 100 | W154: 1.13 | Y154: 87 | Z154: 1.32 | AB154: 109 | AC154: 1.42 | AE154: 95 | AF154: 1.27 | AH154: 111 | AI154: 1.41 | AK154: 82 | AL154: 1.39 | AN154: 44 | AO154: 1.6
B155: 48세 | C155: 계 | D155: 2562 | E155: 1.51 | F155: 98.91 | G155: 189 | H155: 1.36 | I155: 133.33 | J155: 87 | K155: 1.37 | L155: 107.14 | M155: 168 | N155: 1.33 | O155: 104.88 | P155: 234 | Q155: 1.54 | R155: 114.68 | S155: 480 | T155: 1.85 | U155: 71.43 | V155: 282 | W155: 1.53 | X155: 110.45 | Y155: 140 | Z155: 1.14 | AA155: 102.9 | AB155: 221 | AC155: 1.48 | AD155: 102.75 | AE155: 236 | AF155: 1.53 | AG155: 82.95 | AH155: 217 | AI155: 1.35 | AJ155: 102.8 | AK155: 204 | AL155: 1.59 | AM155: 94.29 | AN155: 104 | AO155: 1.72 | AP155: 153.66
C156: 남 | D156: 1274 | E156: 1.47 | G156: 108 | H156: 1.49 | J156: 45 | K156: 1.36 | M156: 86 | N156: 1.33 | P156: 125 | Q156: 1.66 | S156: 200 | T156: 1.56 | V156: 148 | W156: 1.54 | Y156: 71 | Z156: 1.23 | AB156: 112 | AC156: 1.54 | AE156: 107 | AF156: 1.35 | AH156: 110 | AI156: 1.33 | AK156: 99 | AL156: 1.43 | AN156: 63 | AO156: 1.92
C157: 여 | D157: 1288 | E157: 1.54 | G157: 81 | H157: 1.22 | J157: 42 | K157: 1.38 | M157: 82 | N157: 1.33 | P157: 109 | Q157: 1.42 | S157: 280 | T157: 2.15 | V157: 134 | W157: 1.52 | Y157: 69 | Z157: 1.05 | AB157: 109 | AC157: 1.42 | AE157: 129 | AF157: 1.72 | AH157: 107 | AI157: 1.36 | AK157: 105 | AL157: 1.77 | AN157: 41 | AO157: 1.49
B158: 49세 | C158: 계 | D158: 2665 | E158: 1.57 | F158: 105.95 | G158: 187 | H158: 1.35 | I158: 128.05 | J158: 100 | K158: 1.57 | L158: 122.22 | M158: 177 | N158: 1.4 | O158: 96.67 | P158: 232 | Q158: 1.53 | R158: 100 | S158: 484 | T158: 1.87 | U158: 88.33 | V158: 315 | W158: 1.71 | X158: 112.84 | Y158: 179 | Z158: 1.45 | AA158: 113.1 | AB158: 229 | AC158: 1.53 | AD158: 70.9 | AE158: 243 | AF158: 1.57 | AG158: 109.48 | AH158: 236 | AI158: 1.47 | AJ158: 122.64 | AK158: 195 | AL158: 1.52 | AM158: 150 | AN158: 88 | AO158: 1.46 | AP158: 131.58
C159: 남 | D159: 1371 | E159: 1.59 | G159: 105 | H159: 1.45 | J159: 55 | K159: 1.66 | M159: 87 | N159: 1.34 | P159: 116 | Q159: 1.54 | S159: 227 | T159: 1.77 | V159: 167 | W159: 1.73 | Y159: 95 | Z159: 1.65 | AB159: 95 | AC159: 1.31 | AE159: 127 | AF159: 1.6 | AH159: 130 | AI159: 1.58 | AK159: 117 | AL159: 1.69 | AN159: 50 | AO159: 1.53
C160: 여 | D160: 1294 | E160: 1.55 | G160: 82 | H160: 1.24 | J160: 45 | K160: 1.48 | M160: 90 | N160: 1.46 | P160: 116 | Q160: 1.51 | S160: 257 | T160: 1.97 | V160: 148 | W160: 1.67 | Y160: 84 | Z160: 1.28 | AB160: 134 | AC160: 1.74 | AE160: 116 | AF160: 1.55 | AH160: 106 | AI160: 1.35 | AK160: 78 | AL160: 1.32 | AN160: 38 | AO160: 1.38
B161: 50세 | C161: 계 | D161: 3129 | E161: 1.84 | F161: 105.18 | G161: 211 | H161: 1.52 | I161: 151.19 | J161: 107 | K161: 1.68 | L161: 160.98 | M161: 221 | N161: 1.75 | O161: 106.54 | P161: 307 | Q161: 2.02 | R161: 95.54 | S161: 546 | T161: 2.11 | U161: 82.61 | V161: 363 | W161: 1.96 | X161: 134.19 | Y161: 205 | Z161: 1.66 | AA161: 95.24 | AB161: 279 | AC161: 1.86 | AD161: 74.38 | AE161: 257 | AF161: 1.66 | AG161: 127.43 | AH161: 268 | AI161: 1.67 | AJ161: 82.31 | AK161: 237 | AL161: 1.85 | AM161: 141.84 | AN161: 128 | AO161: 2.12 | AP161: 116.95
C162: 남 | D162: 1604 | E162: 1.86 | G162: 127 | H162: 1.75 | J162: 66 | K162: 1.99 | M162: 114 | N162: 1.76 | P162: 150 | Q162: 1.99 | S162: 247 | T162: 1.92 | V162: 208 | W162: 2.16 | Y162: 100 | Z162: 1.74 | AB162: 119 | AC162: 1.64 | AE162: 144 | AF162: 1.81 | AH162: 121 | AI162: 1.47 | AK162: 139 | AL162: 2.01 | AN162: 69 | AO162: 2.1
C163: 여 | D163: 1525 | E163: 1.82 | G163: 84 | H163: 1.27 | J163: 41 | K163: 1.35 | M163: 107 | N163: 1.74 | P163: 157 | Q163: 2.05 | S163: 299 | T163: 2.29 | V163: 155 | W163: 1.75 | Y163: 105 | Z163: 1.6 | AB163: 160 | AC163: 2.08 | AE163: 113 | AF163: 1.51 | AH163: 147 | AI163: 1.87 | AK163: 98 | AL163: 1.66 | AN163: 59 | AO163: 2.14
B164: 51세 | C164: 계 | D164: 3171 | E164: 1.86 | F164: 97.32 | G164: 215 | H164: 1.55 | I164: 144.32 | J164: 124 | K164: 1.95 | L164: 96.83 | M164: 227 | N164: 1.8 | O164: 104.5 | P164: 333 | Q164: 2.19 | R164: 86.03 | S164: 580 | T164: 2.24 | U164: 79.57 | V164: 333 | W164: 1.8 | X164: 119.08 | Y164: 184 | Z164: 1.49 | AA164: 82.18 | AB164: 262 | AC164: 1.75 | AD164: 65.82 | AE164: 272 | AF164: 1.76 | AG164: 106.06 | AH164: 275 | AI164: 1.71 | AJ164: 100.73 | AK164: 261 | AL164: 2.04 | AM164: 113.93 | AN164: 105 | AO164: 1.74 | AP164: 156.1
C165: 남 | D165: 1564 | E165: 1.81 | G165: 127 | H165: 1.75 | J165: 61 | K165: 1.84 | M165: 116 | N165: 1.79 | P165: 154 | Q165: 2.05 | S165: 257 | T165: 2 | V165: 181 | W165: 1.88 | Y165: 83 | Z165: 1.44 | AB165: 104 | AC165: 1.43 | AE165: 140 | AF165: 1.76 | AH165: 138 | AI165: 1.67 | AK165: 139 | AL165: 2.01 | AN165: 64 | AO165: 1.95
C166: 여 | D166: 1607 | E166: 1.92 | G166: 88 | H166: 1.33 | J166: 63 | K166: 2.08 | M166: 111 | N166: 1.8 | P166: 179 | Q166: 2.34 | S166: 323 | T166: 2.47 | V166: 152 | W166: 1.72 | Y166: 101 | Z166: 1.54 | AB166: 158 | AC166: 2.05 | AE166: 132 | AF166: 1.76 | AH166: 137 | AI166: 1.75 | AK166: 122 | AL166: 2.06 | AN166: 41 | AO166: 1.49
B167: 52세 | C167: 계 | D167: 3164 | E167: 1.86 | F167: 101.66 | G167: 212 | H167: 1.53 | I167: 130.43 | J167: 134 | K167: 2.11 | L167: 127.12 | M167: 235 | N167: 1.86 | O167: 113.64 | P167: 295 | Q167: 1.94 | R167: 95.36 | S167: 615 | T167: 2.38 | U167: 82.49 | V167: 348 | W167: 1.88 | X167: 110.91 | Y167: 191 | Z167: 1.55 | AA167: 66.09 | AB167: 278 | AC167: 1.86 | AD167: 81.7 | AE167: 261 | AF167: 1.69 | AG167: 117.5 | AH167: 236 | AI167: 1.47 | AJ167: 87.3 | AK167: 239 | AL167: 1.86 | AM167: 162.64 | AN167: 120 | AO167: 1.99 | AP167: 140
C168: 남 | D168: 1595 | E168: 1.85 | G168: 120 | H168: 1.66 | J168: 75 | K168: 2.26 | M168: 125 | N168: 1.93 | P168: 144 | Q168: 1.91 | S168: 278 | T168: 2.17 | V168: 183 | W168: 1.9 | Y168: 76 | Z168: 1.32 | AB168: 125 | AC168: 1.72 | AE168: 141 | AF168: 1.77 | AH168: 110 | AI168: 1.33 | AK168: 148 | AL168: 2.14 | AN168: 70 | AO168: 2.14
C169: 여 | D169: 1569 | E169: 1.88 | G169: 92 | H169: 1.39 | J169: 59 | K169: 1.94 | M169: 110 | N169: 1.78 | P169: 151 | Q169: 1.97 | S169: 337 | T169: 2.58 | V169: 165 | W169: 1.87 | Y169: 115 | Z169: 1.75 | AB169: 153 | AC169: 1.99 | AE169: 120 | AF169: 1.6 | AH169: 126 | AI169: 1.61 | AK169: 91 | AL169: 1.54 | AN169: 50 | AO169: 1.82
B170: 53세 | C170: 계 | D170: 3496 | E170: 2.06 | F170: 98.64 | G170: 230 | H170: 1.66 | I170: 119.05 | J170: 124 | K170: 1.95 | L170: 117.54 | M170: 234 | N170: 1.85 | O170: 120.75 | P170: 333 | Q170: 2.19 | R170: 99.4 | S170: 644 | T170: 2.49 | U170: 81.92 | V170: 383 | W170: 2.07 | X170: 121.39 | Y170: 256 | Z170: 2.08 | AA170: 69.54 | AB170: 328 | AC170: 2.19 | AD170: 91.81 | AE170: 314 | AF170: 2.03 | AG170: 92.64 | AH170: 273 | AI170: 1.7 | AJ170: 99.27 | AK170: 248 | AL170: 1.93 | AM170: 129.63 | AN170: 129 | AO170: 2.14 | AP170: 89.71
C171: 남 | D171: 1736 | E171: 2.01 | G171: 125 | H171: 1.73 | J171: 67 | K171: 2.02 | M171: 128 | N171: 1.98 | P171: 166 | Q171: 2.2 | S171: 290 | T171: 2.26 | V171: 210 | W171: 2.18 | Y171: 105 | Z171: 1.82 | AB171: 157 | AC171: 2.16 | AE171: 151 | AF171: 1.9 | AH171: 136 | AI171: 1.65 | AK171: 140 | AL171: 2.03 | AN171: 61 | AO171: 1.86
C172: 여 | D172: 1760 | E172: 2.1 | G172: 105 | H172: 1.59 | J172: 57 | K172: 1.88 | M172: 106 | N172: 1.72 | P172: 167 | Q172: 2.18 | S172: 354 | T172: 2.71 | V172: 173 | W172: 1.96 | Y172: 151 | Z172: 2.3 | AB172: 171 | AC172: 2.22 | AE172: 163 | AF172: 2.17 | AH172: 137 | AI172: 1.75 | AK172: 108 | AL172: 1.82 | AN172: 68 | AO172: 2.47
B173: 54세 | C173: 계 | D173: 3481 | E173: 2.05 | F173: 107.08 | G173: 255 | H173: 1.84 | I173: 165.63 | J173: 127 | K173: 2 | L173: 122.81 | M173: 242 | N173: 1.91 | O173: 120 | P173: 350 | Q173: 2.3 | R173: 107.1 | S173: 634 | T173: 2.45 | U173: 112.75 | V173: 363 | W173: 1.96 | X173: 108.62 | Y173: 257 | Z173: 2.08 | AA173: 72.48 | AB173: 287 | AC173: 1.92 | AD173: 105 | AE173: 298 | AF173: 1.93 | AG173: 101.35 | AH173: 275 | AI173: 1.71 | AJ173: 79.74 | AK173: 270 | AL173: 2.11 | AM173: 95.65 | AN173: 123 | AO173: 2.04 | AP173: 151.02
C174: 남 | D174: 1800 | E174: 2.08 | G174: 159 | H174: 2.2 | J174: 70 | K174: 2.11 | M174: 132 | N174: 2.04 | P174: 181 | Q174: 2.4 | S174: 336 | T174: 2.62 | V174: 189 | W174: 1.96 | Y174: 108 | Z174: 1.88 | AB174: 147 | AC174: 2.02 | AE174: 150 | AF174: 1.89 | AH174: 122 | AI174: 1.48 | AK174: 132 | AL174: 1.91 | AN174: 74 | AO174: 2.26
C175: 여 | D175: 1681 | E175: 2.01 | G175: 96 | H175: 1.45 | J175: 57 | K175: 1.88 | M175: 110 | N175: 1.78 | P175: 169 | Q175: 2.21 | S175: 298 | T175: 2.28 | V175: 174 | W175: 1.97 | Y175: 149 | Z175: 2.27 | AB175: 140 | AC175: 1.82 | AE175: 148 | AF175: 1.97 | AH175: 153 | AI175: 1.95 | AK175: 138 | AL175: 2.33 | AN175: 49 | AO175: 1.78
B176: 55세 | C176: 계 | D176: 3741 | E176: 2.2 | F176: 102.11 | G176: 284 | H176: 2.05 | I176: 130.89 | J176: 143 | K176: 2.25 | L176: 126.98 | M176: 275 | N176: 2.17 | O176: 97.84 | P176: 349 | Q176: 2.3 | R176: 97.18 | S176: 616 | T176: 2.38 | U176: 88.96 | V176: 426 | W176: 2.31 | X176: 113 | Y176: 272 | Z176: 2.21 | AA176: 71.07 | AB176: 353 | AC176: 2.36 | AD176: 93.96 | AE176: 346 | AF176: 2.24 | AG176: 97.71 | AH176: 273 | AI176: 1.7 | AJ176: 110 | AK176: 293 | AL176: 2.28 | AM176: 123.66 | AN176: 111 | AO176: 1.84 | AP176: 141.3
C177: 남 | D177: 1890 | E177: 2.19 | G177: 161 | H177: 2.22 | J177: 80 | K177: 2.41 | M177: 136 | N177: 2.1 | P177: 172 | Q177: 2.28 | S177: 290 | T177: 2.26 | V177: 226 | W177: 2.35 | Y177: 113 | Z177: 1.96 | AB177: 171 | AC177: 2.35 | AE177: 171 | AF177: 2.15 | AH177: 143 | AI177: 1.73 | AK177: 162 | AL177: 2.35 | AN177: 65 | AO177: 1.98
C178: 여 | D178: 1851 | E178: 2.21 | G178: 123 | H178: 1.86 | J178: 63 | K178: 2.08 | M178: 139 | N178: 2.25 | P178: 177 | Q178: 2.31 | S178: 326 | T178: 2.5 | V178: 200 | W178: 2.26 | Y178: 159 | Z178: 2.42 | AB178: 182 | AC178: 2.37 | AE178: 175 | AF178: 2.33 | AH178: 130 | AI178: 1.66 | AK178: 131 | AL178: 2.21 | AN178: 46 | AO178: 1.67
B179: 56세 | C179: 계 | D179: 3444 | E179: 2.02 | F179: 103.19 | G179: 252 | H179: 1.82 | I179: 103.23 | J179: 123 | K179: 1.94 | L179: 115.79 | M179: 272 | N179: 2.15 | O179: 83.78 | P179: 317 | Q179: 2.09 | R179: 96.89 | S179: 577 | T179: 2.23 | U179: 112.13 | V179: 338 | W179: 1.83 | X179: 129.93 | Y179: 282 | Z179: 2.29 | AA179: 80.77 | AB179: 346 | AC179: 2.31 | AD179: 89.07 | AE179: 311 | AF179: 2.01 | AG179: 139.23 | AH179: 271 | AI179: 1.68 | AJ179: 102.24 | AK179: 251 | AL179: 1.96 | AM179: 91.6 | AN179: 104 | AO179: 1.72 | AP179: 100
C180: 남 | D180: 1749 | E180: 2.02 | G180: 128 | H180: 1.77 | J180: 66 | K180: 1.99 | M180: 124 | N180: 1.91 | P180: 156 | Q180: 2.07 | S180: 305 | T180: 2.38 | V180: 191 | W180: 1.98 | Y180: 126 | Z180: 2.19 | AB180: 163 | AC180: 2.24 | AE180: 181 | AF180: 2.28 | AH180: 137 | AI180: 1.66 | AK180: 120 | AL180: 1.74 | AN180: 52 | AO180: 1.59
C181: 여 | D181: 1695 | E181: 2.03 | G181: 124 | H181: 1.87 | J181: 57 | K181: 1.88 | M181: 148 | N181: 2.4 | P181: 161 | Q181: 2.1 | S181: 272 | T181: 2.08 | V181: 147 | W181: 1.66 | Y181: 156 | Z181: 2.37 | AB181: 183 | AC181: 2.38 | AE181: 130 | AF181: 1.73 | AH181: 134 | AI181: 1.71 | AK181: 131 | AL181: 2.21 | AN181: 52 | AO181: 1.89
B182: 57세 | C182: 계 | D182: 3214 | E182: 1.89 | F182: 101.5 | G182: 235 | H182: 1.7 | I182: 132.67 | J182: 121 | K182: 1.9 | L182: 105.08 | M182: 218 | N182: 1.72 | O182: 115.84 | P182: 295 | Q182: 1.94 | R182: 94.08 | S182: 541 | T182: 2.09 | U182: 98.17 | V182: 366 | W182: 1.98 | X182: 106.78 | Y182: 235 | Z182: 1.91 | AA182: 94.21 | AB182: 286 | AC182: 1.91 | AD182: 79.87 | AE182: 294 | AF182: 1.9 | AG182: 80.37 | AH182: 269 | AI182: 1.67 | AJ182: 97.79 | AK182: 246 | AL182: 1.92 | AM182: 143.56 | AN182: 108 | AO182: 1.79 | AP182: 107.69
C183: 남 | D183: 1619 | E183: 1.87 | G183: 134 | H183: 1.85 | J183: 62 | K183: 1.87 | M183: 117 | N183: 1.81 | P183: 143 | Q183: 1.9 | S183: 268 | T183: 2.09 | V183: 189 | W183: 1.96 | Y183: 114 | Z183: 1.98 | AB183: 127 | AC183: 1.75 | AE183: 131 | AF183: 1.65 | AH183: 133 | AI183: 1.61 | AK183: 145 | AL183: 2.1 | AN183: 56 | AO183: 1.71
C184: 여 | D184: 1595 | E184: 1.91 | G184: 101 | H184: 1.53 | J184: 59 | K184: 1.94 | M184: 101 | N184: 1.64 | P184: 152 | Q184: 1.98 | S184: 273 | T184: 2.09 | V184: 177 | W184: 2 | Y184: 121 | Z184: 1.84 | AB184: 159 | AC184: 2.07 | AE184: 163 | AF184: 2.17 | AH184: 136 | AI184: 1.73 | AK184: 101 | AL184: 1.71 | AN184: 52 | AO184: 1.89
B185: 58세 | C185: 계 | D185: 3113 | E185: 1.83 | F185: 105.75 | G185: 257 | H185: 1.85 | I185: 97.69 | J185: 107 | K185: 1.68 | L185: 137.78 | M185: 239 | N185: 1.89 | O185: 92.74 | P185: 291 | Q185: 1.92 | R185: 80.75 | S185: 494 | T185: 1.91 | U185: 120.54 | V185: 358 | W185: 1.94 | X185: 105.75 | Y185: 244 | Z185: 1.98 | AA185: 83.46 | AB185: 279 | AC185: 1.86 | AD185: 106.67 | AE185: 265 | AF185: 1.72 | AG185: 110.32 | AH185: 242 | AI185: 1.5 | AJ185: 89.06 | AK185: 245 | AL185: 1.91 | AM185: 137.86 | AN185: 92 | AO185: 1.53 | AP185: 206.67
C186: 남 | D186: 1600 | E186: 1.85 | G186: 127 | H186: 1.75 | J186: 62 | K186: 1.87 | M186: 115 | N186: 1.77 | P186: 130 | Q186: 1.73 | S186: 270 | T186: 2.1 | V186: 184 | W186: 1.91 | Y186: 111 | Z186: 1.93 | AB186: 144 | AC186: 1.98 | AE186: 139 | AF186: 1.75 | AH186: 114 | AI186: 1.38 | AK186: 142 | AL186: 2.06 | AN186: 62 | AO186: 1.89
C187: 여 | D187: 1513 | E187: 1.81 | G187: 130 | H187: 1.96 | J187: 45 | K187: 1.48 | M187: 124 | N187: 2.01 | P187: 161 | Q187: 2.1 | S187: 224 | T187: 1.72 | V187: 174 | W187: 1.97 | Y187: 133 | Z187: 2.02 | AB187: 135 | AC187: 1.76 | AE187: 126 | AF187: 1.68 | AH187: 128 | AI187: 1.63 | AK187: 103 | AL187: 1.74 | AN187: 30 | AO187: 1.09
B188: 59세 | C188: 계 | D188: 3240 | E188: 1.9 | F188: 99.88 | G188: 296 | H188: 2.14 | I188: 105.56 | J188: 124 | K188: 1.95 | L188: 100 | M188: 227 | N188: 1.8 | O188: 104.5 | P188: 265 | Q188: 1.74 | R188: 93.43 | S188: 499 | T188: 1.93 | U188: 105.35 | V188: 380 | W188: 2.06 | X188: 93.88 | Y188: 230 | Z188: 1.87 | AA188: 93.28 | AB188: 314 | AC188: 2.1 | AD188: 88.02 | AE188: 316 | AF188: 2.05 | AG188: 92.68 | AH188: 255 | AI188: 1.59 | AJ188: 109.02 | AK188: 231 | AL188: 1.8 | AM188: 113.89 | AN188: 103 | AO188: 1.71 | AP188: 114.58
C189: 남 | D189: 1619 | E189: 1.87 | G189: 152 | H189: 2.1 | J189: 62 | K189: 1.87 | M189: 116 | N189: 1.79 | P189: 128 | Q189: 1.7 | S189: 256 | T189: 1.99 | V189: 184 | W189: 1.91 | Y189: 111 | Z189: 1.93 | AB189: 147 | AC189: 2.02 | AE189: 152 | AF189: 1.91 | AH189: 133 | AI189: 1.61 | AK189: 123 | AL189: 1.78 | AN189: 55 | AO189: 1.68
C190: 여 | D190: 1621 | E190: 1.94 | G190: 144 | H190: 2.17 | J190: 62 | K190: 2.04 | M190: 111 | N190: 1.8 | P190: 137 | Q190: 1.79 | S190: 243 | T190: 1.86 | V190: 196 | W190: 2.22 | Y190: 119 | Z190: 1.81 | AB190: 167 | AC190: 2.17 | AE190: 164 | AF190: 2.19 | AH190: 122 | AI190: 1.56 | AK190: 108 | AL190: 1.82 | AN190: 48 | AO190: 1.74
B191: 60세 | C191: 계 | D191: 2724 | E191: 1.6 | F191: 101.93 | G191: 222 | H191: 1.6 | I191: 76.19 | J191: 96 | K191: 1.51 | L191: 146.15 | M191: 228 | N191: 1.8 | O191: 111.11 | P191: 248 | Q191: 1.63 | R191: 115.65 | S191: 390 | T191: 1.51 | U191: 96.97 | V191: 334 | W191: 1.81 | X191: 116.88 | Y191: 197 | Z191: 1.6 | AA191: 105.21 | AB191: 280 | AC191: 1.87 | AD191: 68.67 | AE191: 235 | AF191: 1.52 | AG191: 117.59 | AH191: 184 | AI191: 1.14 | AJ191: 100 | AK191: 205 | AL191: 1.6 | AM191: 118.09 | AN191: 105 | AO191: 1.74 | AP191: 98.11
C192: 남 | D192: 1375 | E192: 1.59 | G192: 96 | H192: 1.33 | J192: 57 | K192: 1.72 | M192: 120 | N192: 1.85 | P192: 133 | Q192: 1.77 | S192: 192 | T192: 1.5 | V192: 180 | W192: 1.87 | Y192: 101 | Z192: 1.75 | AB192: 114 | AC192: 1.57 | AE192: 127 | AF192: 1.6 | AH192: 92 | AI192: 1.12 | AK192: 111 | AL192: 1.61 | AN192: 52 | AO192: 1.59
C193: 여 | D193: 1349 | E193: 1.61 | G193: 126 | H193: 1.9 | J193: 39 | K193: 1.29 | M193: 108 | N193: 1.75 | P193: 115 | Q193: 1.5 | S193: 198 | T193: 1.52 | V193: 154 | W193: 1.74 | Y193: 96 | Z193: 1.46 | AB193: 166 | AC193: 2.16 | AE193: 108 | AF193: 1.44 | AH193: 92 | AI193: 1.17 | AK193: 94 | AL193: 1.59 | AN193: 53 | AO193: 1.93
B194: 61세 | C194: 계 | D194: 3312 | E194: 1.95 | F194: 100 | G194: 275 | H194: 1.98 | I194: 103.7 | J194: 120 | K194: 1.89 | L194: 93.55 | M194: 268 | N194: 2.12 | O194: 112.7 | P194: 321 | Q194: 2.11 | R194: 79.33 | S194: 487 | T194: 1.88 | U194: 98.78 | V194: 391 | W194: 2.12 | X194: 93.56 | Y194: 258 | Z194: 2.09 | AA194: 92.54 | AB194: 342 | AC194: 2.29 | AD194: 88.95 | AE194: 273 | AF194: 1.77 | AG194: 116.67 | AH194: 231 | AI194: 1.44 | AJ194: 113.89 | AK194: 249 | AL194: 1.94 | AM194: 137.14 | AN194: 97 | AO194: 1.61 | AP194: 83.02
C195: 남 | D195: 1656 | E195: 1.92 | G195: 140 | H195: 1.93 | J195: 58 | K195: 1.75 | M195: 142 | N195: 2.19 | P195: 142 | Q195: 1.89 | S195: 242 | T195: 1.89 | V195: 189 | W195: 1.96 | Y195: 124 | Z195: 2.15 | AB195: 161 | AC195: 2.21 | AE195: 147 | AF195: 1.85 | AH195: 123 | AI195: 1.49 | AK195: 144 | AL195: 2.09 | AN195: 44 | AO195: 1.34
C196: 여 | D196: 1656 | E196: 1.98 | G196: 135 | H196: 2.04 | J196: 62 | K196: 2.04 | M196: 126 | N196: 2.04 | P196: 179 | Q196: 2.34 | S196: 245 | T196: 1.88 | V196: 202 | W196: 2.29 | Y196: 134 | Z196: 2.04 | AB196: 181 | AC196: 2.35 | AE196: 126 | AF196: 1.68 | AH196: 108 | AI196: 1.38 | AK196: 105 | AL196: 1.77 | AN196: 53 | AO196: 1.93
B197: 62세 | C197: 계 | D197: 3152 | E197: 1.85 | F197: 99.49 | G197: 286 | H197: 2.06 | I197: 93.24 | J197: 137 | K197: 2.16 | L197: 95.71 | M197: 268 | N197: 2.12 | O197: 104.58 | P197: 316 | Q197: 2.08 | R197: 97.5 | S197: 425 | T197: 1.64 | U197: 109.36 | V197: 313 | W197: 1.69 | X197: 99.36 | Y197: 233 | Z197: 1.89 | AA197: 102.61 | AB197: 329 | AC197: 2.2 | AD197: 93.53 | AE197: 278 | AF197: 1.8 | AG197: 94.41 | AH197: 250 | AI197: 1.55 | AJ197: 92.31 | AK197: 223 | AL197: 1.74 | AM197: 110.38 | AN197: 94 | AO197: 1.56 | AP197: 100
C198: 남 | D198: 1572 | E198: 1.82 | G198: 138 | H198: 1.91 | J198: 67 | K198: 2.02 | M198: 137 | N198: 2.11 | P198: 156 | Q198: 2.07 | S198: 222 | T198: 1.73 | V198: 156 | W198: 1.62 | Y198: 118 | Z198: 2.05 | AB198: 159 | AC198: 2.19 | AE198: 135 | AF198: 1.7 | AH198: 120 | AI198: 1.46 | AK198: 117 | AL198: 1.69 | AN198: 47 | AO198: 1.43
C199: 여 | D199: 1580 | E199: 1.89 | G199: 148 | H199: 2.23 | J199: 70 | K199: 2.31 | M199: 131 | N199: 2.12 | P199: 160 | Q199: 2.09 | S199: 203 | T199: 1.56 | V199: 157 | W199: 1.78 | Y199: 115 | Z199: 1.75 | AB199: 170 | AC199: 2.21 | AE199: 143 | AF199: 1.91 | AH199: 130 | AI199: 1.66 | AK199: 106 | AL199: 1.79 | AN199: 47 | AO199: 1.71
B200: 63세 | C200: 계 | D200: 3728 | E200: 2.19 | F200: 97.46 | G200: 367 | H200: 2.65 | I200: 97.31 | J200: 149 | K200: 2.34 | L200: 112.86 | M200: 324 | N200: 2.56 | O200: 71.43 | P200: 340 | Q200: 2.24 | R200: 88.89 | S200: 473 | T200: 1.83 | U200: 122.07 | V200: 430 | W200: 2.33 | X200: 100.93 | Y200: 264 | Z200: 2.14 | AA200: 97.01 | AB200: 393 | AC200: 2.63 | AD200: 93.6 | AE200: 334 | AF200: 2.16 | AG200: 98.81 | AH200: 275 | AI200: 1.71 | AJ200: 105.22 | AK200: 250 | AL200: 1.95 | AM200: 100 | AN200: 129 | AO200: 2.14 | AP200: 79.17
C201: 남 | D201: 1840 | E201: 2.13 | G201: 181 | H201: 2.5 | J201: 79 | K201: 2.38 | M201: 135 | N201: 2.08 | P201: 160 | Q201: 2.13 | S201: 260 | T201: 2.03 | V201: 216 | W201: 2.24 | Y201: 130 | Z201: 2.26 | AB201: 190 | AC201: 2.61 | AE201: 166 | AF201: 2.09 | AH201: 141 | AI201: 1.71 | AK201: 125 | AL201: 1.81 | AN201: 57 | AO201: 1.74
C202: 여 | D202: 1888 | E202: 2.26 | G202: 186 | H202: 2.81 | J202: 70 | K202: 2.31 | M202: 189 | N202: 3.07 | P202: 180 | Q202: 2.35 | S202: 213 | T202: 1.63 | V202: 214 | W202: 2.42 | Y202: 134 | Z202: 2.04 | AB202: 203 | AC202: 2.64 | AE202: 168 | AF202: 2.24 | AH202: 134 | AI202: 1.71 | AK202: 125 | AL202: 2.11 | AN202: 72 | AO202: 2.62
... 141 more rows

Sheet 인구 및 세대현황(대전광역시)
B2: 인구 및 세대현황
B3: 행정기관: | C3: 대전광역시
B4: 작성기준: | C4: 2024.05 현재 | H4: 출력일자 : 2024.06.03 | L4: (단위 : 명)
B5: 행정기관 | D5: 인 구 수 | G5: 구 성 비 | J5: 성비 | K5: 세대수 | L5: 세대당인구
D6: 계 | E6: 남 | F6: 여 | G6: 계 | H6: 남 | I6: 여
B7: 대전광역시 | D7: 1441119 | E7: 718696 | F7: 722423 | G7: 100 | H7: 49.87 | I7: 50.13 | J7: 99.48 | K7: 685330 | L7: 2.1
B8: 대덕구 | D8: 170090 | E8: 86443 | F8: 83647 | G8: 11.8 | H8: 6 | I8: 5.8 | J8: 103.34 | K8: 81261 | L8: 2.09
B9: 동구 | D9: 216244 | E9: 108907 | F9: 107337 | G9: 15.01 | H9: 7.56 | I9: 7.45 | J9: 101.46 | K9: 109376 | L9: 1.98
B10: 중구 | D10: 223462 | E10: 109625 | F10: 113837 | G10: 15.51 | H10: 7.61 | I10: 7.9 | J10: 96.3 | K10: 107455 | L10: 2.08
B11: 서구 | D11: 462640 | E11: 226968 | F11: 235672 | G11: 32.1 | H11: 15.75 | I11: 16.35 | J11: 96.31 | K11: 218159 | L11: 2.12
B12: 유성구 | D12: 368683 | E12: 186753 | F12: 181930 | G12: 25.58 | H12: 12.96 | I12: 12.62 | J12: 102.65 | K12: 169079 | L12: 2.18
